Workbook

Sheet Försättsblad
B1: Försättsblad
B2: =IF(B6=0,"",B6) -> Första linjens digitala vård - nya kanaler - bild och video
B5: Tjänst / projekt / förändringsinitiativ
B6: Första linjens digitala vård - nya kanaler - bild och video
B9: Revisionshistorik
B10: Version | C10: Datum | D10: Författare | E10: Kommentar
B11: 0.1 | C11: 2019-07-01 | D11: Amanda Sundberg | E11: Preliminär kalkyl för bild
B12: 0.2 | C12: 2020-09-01 | D12: Amanda Sundberg | E12: Uppdaterade bildkalkyl efter effektmätningar i pilot
B13: 0.3 | C13: 2020-12-01 | D13: Amanda Sundberg | E13: Uppdaterade bild och video till nationell kalkyl
B14: 0.4 | C14: 2021-02-17 | D14: Amanda Sundberg | E14: Lägger ihop bild och video i samma kalkyl, justerar
B15: 0.5 | C15: 2021-03-10 | D15: Amanda Sundberg | E15: Justerar andel lämpliga samtal, separerar bild & video
B19: Startår | E19: Diskonteringsränta
B20: Från när vill ni börja räkna nyttor och kostnader? | E20: Diskontering innebär att nytta och kostnader som inträffar i framtiden värderas lägre med en viss ränta. Kalkylmallen är förinställd på att räkna med TLVs rekommendation på 3%, men värdet kan ändras nedan.
B22: Parameter | C22: Värde | E22: Parameter | F22: Värde
B23: Startår | C23: 2019 | E23: Diskonteringsränta | F23: 3%
B26: Intressenter
B27: Ange de intressenter som bär nyttor eller kostnader alternativt är involverade i genomförandet. De intressenter som anges här kommer att visas och bli valbara i den här mallens flikar om kostnader och nyttor.
B29: Intressent
B30: Regioner
B31: Invånare
B32: Inera
B33: Staten

Sheet Räkna på nyttorna
C1: Räkna på nyttorna
C2: =IF(Försättsblad!B6=0,"",Försättsblad!B6) -> Första linjens digitala vård - nya kanaler - bild och video
E4: Skriv en beskrivande rubrik på nyttan. | F4: Ange ert troligaste värde. | G4: Ange ett min- och max-värde för att få en osäkerhetsbedömning | I4: Var kommer informationen ifrån? | L4: Fyll i nyttan år för år. Dessa summeras sedan automatiskt. Tänk på att alla nyttor kanske inte infaller från första året. | R4: Summeras automatiskt
A5: 1 | C5: Välj nyttokategori: | E5: Bild - frigjorda vårdbesök | F5: Trolig | G5: Min | H5: Max | I5: Källa | L5: =Startår -> 2019 | M5: =L5+1 -> 2020 | N5: =M5+1 -> 2021 | O5: 2022 | P5: 2023 | Q5: 2024 | R5: Summa
C6: 2. Omfördelningsnytta | E6: Besvarade invånarsamtal 1177 i snitt för 19 regioner som inför bild | F6: ='Data antal samtal'!C22 -> 2,728,381 | G6: =F6 -> 2,728,381 | H6: =F6 -> 2,728,381 | I6: Baseras på antal besvarade samtal för de 19 regionerna 2019 | K6: Trolig | N6: =N9*$F$19 -> 8,797,228 | O6: =O9*$F$19 -> 26,391,684 | P6: 26,391,684 | Q6: 26,391,684 | R6: =SUM(L6:Q6) -> 87,972,280
C7: Välj intressent: | E7: Andel av samtalen som lämpar sig för bildsamtal | F7: 7% | G7: 5% | H7: 10% | I7: Bedömning utifrån piloterna och samtal med medicinskt sakkunnig. | K7: Min | N7: =N9*$G$19 -> 6,283,734 | O7: =O9*$G$19 -> 18,851,203 | P7: 18,851,203 | Q7: 18,851,203 | R7: =SUM(L7:Q7) -> 62,837,343
C8: Regioner | E8: Antal samtal lämpade för bildsamtal per år | F8: =F7*F6 -> 190,987 | G8: =G7*G6 -> 136,419 | H8: 272,838 | K8: Max | N8: =N9*$H$19 -> 12,567,469 | O8: 37,702,406 | P8: 37,702,406 | Q8: 37,702,406 | R8: =SUM(L8:Q8) -> 125,674,686
C9: Anteckningar | E9: Andel röstsamtal - lämpade för bild - som får egenvårdsråd | F9: 33% | G9: 33% | H9: 33% | I9: Resultat från bild- och videopiloter | N9: 0.3 | O9: 0.9 | P9: 0.9 | Q9: 0.9
E10: Antal röstsamtal - lämpade för bild - som får egenvårdsråd | F10: =F9*F8 -> 63,026 | G10: =G9*G8 -> 45,018 | H10: 90,037
E11: Andel bildsamtal som får egenvårdsråd | F11: 42% | G11: 42% | H11: 42% | I11: Resultat från bild- och videopiloter
E12: Antal bildsamtal som får egenvårdsråd | F12: =F11*F8 -> 80,214 | G12: =G11*G8 -> 57,296 | H12: 114,592
E13: Antal besök i primärvården som kan undvikas genom att använda bild | F13: =F12-F10 -> 17,189 | G13: =G12-G10 -> 12,278 | H13: 24,555
E14: Regionens kostnad för ett besök i primärvården | F14: 1,706 | G14: 1,706 | H14: 1,706 | I14: Vården i siffror
F19: =F14*F13 -> 29,324,093 | G19: =G14*G13 -> 20,945,781 | H19: =H14*H13 -> 41,891,562
A22: 2 | C22: Välj nyttokategori: | E22: Bild - sparar tid för invånare | F22: Trolig | G22: Min | H22: Max | I22: Källa | L22: =Startår -> 2019 | M22: =L22+1 -> 2020 | N22: =M22+1 -> 2021 | O22: =N22+1 -> 2022 | P22: =O22+1 -> 2023 | Q22: =P22+1 -> 2024 | R22: Summa
C23: 2. Omfördelningsnytta | E23: Antal besök i primärvården som kan undvikas genom att använda bild | F23: =F13 -> 17,189 | G23: =G13 -> 12,278 | H23: 24,555 | I23: Se ovan | K23: Trolig | N23: =N26*$F$36 -> 1,320,616 | O23: =O26*$F$36 -> 3,961,847 | P23: 3,961,847 | Q23: 3,961,847 | R23: =SUM(L23:Q23) -> 13,206,155
C24: Välj intressent: | E24: Snittrestid tur och retur vårdmottagning (timmar) | F24: 0.3 | G24: 0.3 | H24: 0.3 | I24: Socialstyrelsen, Tillgänglighet i hälso- och sjukvården | K24: Min | N24: =N26*$G$36 -> 725,613 | O24: =O26*$G$36 -> 2,176,839 | P24: 2,176,839 | Q24: 2,176,839 | R24: =SUM(L24:Q24) -> 7,256,129
C25: Invånare | E25: Snittid på vårdmottagning (timmar) | F25: 1 | G25: 1 | H25: 1 | I25: Uppskattning baserad på personlig erfarenhet (hitta rätt, vänta, besök, gå på toalett, klä på sig) | K25: Max | N25: =N26*$H$36 -> 1,451,226 | O25: =O26*$H$36 -> 4,353,678 | P25: 4,353,678 | Q25: 4,353,678 | R25: =SUM(L25:Q25) -> 14,512,259
C26: Anteckningar | E26: Värdering av tid för vårdbesök för invånaren | F26: 197 | G26: 197 | H26: 197 | I26: Baseras på medianlön i Sverige och att besök sker på arbetstid | N26: 0.3 | O26: 0.9 | P26: 0.9 | Q26: 0.9
E27: Sparad tid | F27: =(F24+F25)*F23*F26 -> 4,402,052 | G27: =(G24+G25)*G23*G26 -> 3,144,323 | H27: 6,288,645
F36: =F27 -> 4,402,052 | G36: =G26*G23 -> 2,418,710 | H36: =H26*H23 -> 4,837,420
A39: 3 | C39: Välj nyttokategori: | E39: Bild - sparar pengar för invånare | F39: Trolig | G39: Min | H39: Max | I39: Källa | L39: =Startår -> 2019 | M39: =L39+1 -> 2020 | N39: =M39+1 -> 2021 | O39: =N39+1 -> 2022 | P39: =O39+1 -> 2023 | Q39: =P39+1 -> 2024 | R39: Summa
C40: 1. Finansiell | E40: =E13 -> Antal besök i primärvården som kan undvikas genom att använda bild | F40: =F13 -> 17,189 | G40: 12,278 | H40: 24,555 | I40: 0 | K40: Trolig | N40: =N43*$F$53 -> 1,005,545 | O40: =O43*$F$53 -> 3,016,634 | P40: 3,016,634 | Q40: 3,016,634 | R40: =SUM(L40:Q40) -> 10,055,448
C41: Välj intressent: | E41: Patientavgift för ett besök i primärvården | F41: 195 | G41: 195 | H41: 195 | I41: SKR, Patientavgifter | K41: Min | N41: =N43*$G$53 -> 718,246 | O41: 2,154,739 | P41: 2,154,739 | Q41: 2,154,739 | R41: =SUM(L41:Q41) -> 7,182,463
E42: Sparade pengar | F42: =F41*F40 -> 3,351,816 | G42: =G41*G40 -> 2,394,154 | H42: 4,788,309 | K42: Max | N42: =N43*$H$53 -> 1,436,493 | O42: 4,309,478 | P42: 4,309,478 | Q42: 4,309,478 | R42: =SUM(L42:Q42) -> 14,364,926
C43: Anteckningar | N43: 0.3 | O43: 0.9 | P43: 0.9 | Q43: 0.9
F53: =F42 -> 3,351,816 | G53: =G42 -> 2,394,154 | H53: 4,788,309
A56: 4 | C56: Välj nyttokategori: | E56: Video - frigjorda vårdbesök | F56: Trolig | G56: Min | H56: Max | I56: Källa | L56: =Startår -> 2019 | M56: =L56+1 -> 2020 | N56: =M56+1 -> 2021 | O56: =N56+1 -> 2022 | P56: =O56+1 -> 2023 | Q56: =P56+1 -> 2024 | R56: Summa
C57: 2. Omfördelningsnytta | E57: Besvarade invånarsamtal 1177 i snitt för 16 regioner som inför video | F57: ='Data antal samtal'!C23 -> 2,431,777 | G57: =F57 -> 2,431,777 | H57: =F57 -> 2,431,777 | I57: Baseras på antal besvarade samtal för de 16 regionerna 2019 | K57: Trolig | N57: =N60*$F$70 -> 4,356,042 | O57: =O60*$F$70 -> 13,068,126 | P57: 39,204,379 | Q57: 39,204,379 | R57: =SUM(L57:Q57) -> 95,832,927
C58: Välj intressent: | E58: Andel av samtalen som lämpar sig för video | F58: 7% | G58: 5% | H58: 10% | I58: Bedömning utifrån piloterna och samtal med medicinskt sakkunnig. | K58: Min | N58: =N60*$G$70 -> 3,111,459 | O58: =O60*$G$70 -> 9,334,376 | P58: 28,003,128 | Q58: 28,003,128 | R58: =SUM(L58:Q58) -> 68,452,091
C59: Regioner | E59: Antal samtal lämpade för video per år | F59: =F58*F57 -> 170,224 | G59: =G58*G57 -> 121,589 | H59: 243,178 | K59: Max | N59: =N60*$H$70 -> 5,808,056 | O59: =O60*$H$70 -> 17,424,169 | P59: 52,272,506 | Q59: 52,272,506 | R59: =SUM(L59:Q59) -> 127,777,236
C60: Anteckningar | E60: Andel röstsamtal - lämpade för video - som får egenvårdsråd | F60: 27% | G60: 27% | H60: 39% | I60: Resultat från bild- och videopiloter | N60: 0.1 | O60: 0.3 | P60: 0.9 | Q60: 0.9
E61: Antal röstsamtal - lämpade för video - som får egenvårdsråd | F61: =F60*F59 -> 45,961 | G61: =G60*G59 -> 32,829 | H61: 94,839
E62: Andel videosamtal - lämpade för video - som får egenvårdsråd | F62: 42% | G62: 42% | H62: 53% | I62: Resultat från bild- och videopiloter
E63: Antal videosamtal - lämpade för video - som får egenvårdsråd | F63: =F62*F59 -> 71,494 | G63: =G62*G59 -> 51,067 | H63: 128,884
E64: Antal besök i primärvården som kan undvikas genom att använda video | F64: =F63-F61 -> 25,534 | G64: =G63-G61 -> 18,238 | H64: 34,045
E65: Regionens kostnad för ett besök i primärvården | F65: 1,706 | G65: 1,706 | H65: 1,706 | I65: Vården i siffror
F70: =F65*F64 -> 43,560,421 | G70: =G65*G64 -> 31,114,587 | H70: 58,080,562
A73: 5 | C73: Välj nyttokategori: | E73: Video - sparar tid | F73: Trolig | G73: Min | H73: Max | I73: Källa | L73: =Startår -> 2019 | M73: =L73+1 -> 2020 | N73: =M73+1 -> 2021 | O73: =N73+1 -> 2022 | P73: =O73+1 -> 2023 | Q73: =P73+1 -> 2024 | R73: Summa
C74: 2. Omfördelningsnytta | E74: Antal besök i primärvården som kan undvikas genom att använda bild | F74: =F64 -> 25,534 | G74: =G64 -> 18,238 | H74: 34,045 | K74: Trolig | N74: =N77*$F$87 -> 653,917 | O74: =O77*$F$87 -> 1,961,751 | P74: 5,885,253 | Q74: 5,885,253 | R74: =SUM(L74:Q74) -> 14,386,174
C75: Välj intressent: | E75: Snittrestid tur och retur vårdmottagning (timmar) | F75: 0.3 | G75: 0.3 | H75: 0.3 | K75: Min | N75: =N77*$G$87 -> 359,295 | O75: =O77*$G$87 -> 1,077,885 | P75: 3,233,655 | Q75: 3,233,655 | R75: =SUM(L75:Q75) -> 7,904,491
C76: Invånare | E76: Snittid på vårdmottagning (timmar) | F76: 1 | G76: 1 | H76: 1 | K76: Max | N76: =N77*$H$87 -> 670,684 | O76: =O77*$H$87 -> 2,012,052 | P76: 6,036,157 | Q76: 6,036,157 | R76: =SUM(L76:Q76) -> 14,755,050
C77: Anteckningar | E77: Värdering av tid för vårdbesök för invånaren | F77: 197 | G77: 197 | H77: 197 | N77: 0.1 | O77: 0.3 | P77: 0.9 | Q77: 0.9
E78: Sparad tid | F78: =(F75+F76)*F74*F77 -> 6,539,170 | G78: =(G75+G76)*G74*G77 -> 4,670,836 | H78: 8,718,893
F87: =F78 -> 6,539,170 | G87: =G77*G74 -> 3,592,951 | H87: =H77*H74 -> 6,706,841
A90: 6 | C90: Välj nyttokategori: | E90: Video - sparar pengar | F90: Trolig | G90: Min | H90: Max | I90: Källa | L90: =Startår -> 2019 | M90: =L90+1 -> 2020 | N90: =M90+1 -> 2021 | O90: =N90+1 -> 2022 | P90: =O90+1 -> 2023 | Q90: =P90+1 -> 2024 | R90: Summa
C91: 1. Finansiell | E91: =E64 -> Antal besök i primärvården som kan undvikas genom att använda video | F91: =F64 -> 25,534 | G91: 18,238 | H91: 34,045 | K91: Trolig | N91: =N94*$F$104 -> 497,906 | O91: =O94*$F$104 -> 1,493,719 | P91: 4,481,157 | Q91: 4,481,157 | R91: =SUM(L91:Q91) -> 10,953,939
C92: Välj intressent: | E92: Patientavgift för ett besök i primärvården | F92: 195 | G92: 195 | H92: 195 | K92: Min | N92: =N94*$G$104 -> 355,647 | O92: =O94*$G$104 -> 1,066,942 | P92: 3,200,826 | Q92: 3,200,826 | R92: =SUM(L92:Q92) -> 7,824,242
C93: Invånare | E93: Sparade pengar | F93: =F92*F91 -> 4,979,063 | G93: =G92*G91 -> 3,556,474 | H93: 6,638,751 | K93: Max | N93: =N94*$H$104 -> 663,875 | O93: =O94*$H$104 -> 1,991,625 | P93: 5,974,876 | Q93: 5,974,876 | R93: =SUM(L93:Q93) -> 14,605,253
C94: Anteckningar | N94: 0.1 | O94: 0.3 | P94: 0.9 | Q94: 0.9
F104: =F93 -> 4,979,063 | G104: =G93 -> 3,556,474 | H104: 6,638,751
A107: 7 | C107: Välj nyttokategori: | F107: Trolig | G107: Min | H107: Max | I107: Källa | L107: =Startår -> 2019 | M107: =L107+1 -> 2020 | N107: =M107+1 -> 2021 | O107: =N107+1 -> 2022 | P107: =O107+1 -> 2023 | Q107: =P107+1 -> 2024 | R107: Summa
K108: Trolig | R108: =SUM(L108:Q108) -> 0
C109: Välj intressent: | K109: Min | R109: =SUM(L109:Q109) -> 0
K110: Max | R110: =SUM(L110:Q110) -> 0
C111: Anteckningar
F121: =F114*F112 -> 0
A124: 8 | C124: Välj nyttokategori: | F124: Trolig | G124: Min | H124: Max | I124: Källa | L124: =Startår -> 2019 | M124: =L124+1 -> 2020 | N124: =M124+1 -> 2021 | O124: =N124+1 -> 2022 | P124: =O124+1 -> 2023 | Q124: =P124+1 -> 2024 | R124: Summa
K125: Trolig | R125: =SUM(L125:Q125) -> 0
C126: Välj intressent: | K126: Min | R126: =SUM(L126:Q126) -> 0
K127: Max | R127: =SUM(L127:Q127) -> 0
C128: Anteckningar
A141: 9 | C141: Välj nyttokategori: | F141: Trolig | G141: Min | H141: Max | I141: Källa | L141: =Startår -> 2019 | M141: =L141+1 -> 2020 | N141: =M141+1 -> 2021 | O141: =N141+1 -> 2022 | P141: =O141+1 -> 2023 | Q141: =P141+1 -> 2024 | R141: Summa
K142: Trolig | R142: =SUM(L142:Q142) -> 0
C143: Välj intressent: | K143: Min | R143: =SUM(L143:Q143) -> 0
K144: Max | R144: =SUM(L144:Q144) -> 0
C145: Anteckningar
A158: 10 | C158: Välj nyttokategori: | F158: Trolig | G158: Min | H158: Max | I158: Källa | L158: =Startår -> 2019 | M158: =L158+1 -> 2020 | N158: =M158+1 -> 2021 | O158: =N158+1 -> 2022 | P158: =O158+1 -> 2023 | Q158: =P158+1 -> 2024 | R158: Summa
K159: Trolig | R159: =SUM(L159:Q159) -> 0
C160: Välj intressent: | K160: Min | R160: =SUM(L160:Q160) -> 0
K161: Max | R161: =SUM(L161:Q161) -> 0
C162: Anteckningar
A175: 11 | C175: Välj nyttokategori: | F175: Trolig | G175: Min | H175: Max | I175: Källa | L175: =Startår -> 2019 | M175: =L175+1 -> 2020 | N175: =M175+1 -> 2021 | O175: =N175+1 -> 2022 | P175: =O175+1 -> 2023 | Q175: =P175+1 -> 2024 | R175: Summa
K176: Trolig | R176: =SUM(L176:Q176) -> 0
C177: Välj intressent: | K177: Min | R177: =SUM(L177:Q177) -> 0
K178: Max | R178: =SUM(L178:Q178) -> 0
C179: Anteckningar
A192: 12 | C192: Välj nyttokategori: | F192: Trolig | G192: Min | H192: Max | I192: Källa | L192: =Startår -> 2019 | M192: =L192+1 -> 2020 | N192: =M192+1 -> 2021 | O192: =N192+1 -> 2022 | P192: =O192+1 -> 2023 | Q192: =P192+1 -> 2024 | R192: Summa
K193: Trolig | R193: =SUM(L193:Q193) -> 0
C194: Välj intressent: | K194: Min | R194: =SUM(L194:Q194) -> 0
K195: Max | R195: =SUM(L195:Q195) -> 0
C196: Anteckningar
A209: 13 | C209: Välj nyttokategori: | F209: Trolig | G209: Min | H209: Max | I209: Källa | L209: =Startår -> 2019 | M209: =L209+1 -> 2020 | N209: =M209+1 -> 2021 | O209: =N209+1 -> 2022 | P209: =O209+1 -> 2023 | Q209: =P209+1 -> 2024 | R209: Summa
K210: Trolig | R210: =SUM(L210:Q210) -> 0
C211: Välj intressent: | K211: Min | R211: =SUM(L211:Q211) -> 0
K212: Max | R212: =SUM(L212:Q212) -> 0
C213: Anteckningar
A226: 14 | C226: Välj nyttokategori: | F226: Trolig | G226: Min | H226: Max | I226: Källa | L226: =Startår -> 2019 | M226: =L226+1 -> 2020 | N226: =M226+1 -> 2021 | O226: =N226+1 -> 2022 | P226: =O226+1 -> 2023 | Q226: =P226+1 -> 2024 | R226: Summa
K227: Trolig | R227: =SUM(L227:Q227) -> 0
C228: Välj intressent: | K228: Min | R228: =SUM(L228:Q228) -> 0
K229: Max | R229: =SUM(L229:Q229) -> 0
C230: Anteckningar
A243: 15 | C243: Välj nyttokategori: | F243: Trolig | G243: Min | H243: Max | I243: Källa | L243: =Startår -> 2019 | M243: =L243+1 -> 2020 | N243: =M243+1 -> 2021 | O243: =N243+1 -> 2022 | P243: =O243+1 -> 2023 | Q243: =P243+1 -> 2024 | R243: Summa
K244: Trolig | R244: =SUM(L244:Q244) -> 0
C245: Välj intressent: | K245: Min | R245: =SUM(L245:Q245) -> 0
K246: Max | R246: =SUM(L246:Q246) -> 0
C247: Anteckningar
A260: 16 | C260: Välj nyttokategori: | F260: Trolig | G260: Min | H260: Max | I260: Källa | L260: =Startår -> 2019 | M260: =L260+1 -> 2020 | N260: =M260+1 -> 2021 | O260: =N260+1 -> 2022 | P260: =O260+1 -> 2023 | Q260: =P260+1 -> 2024 | R260: Summa
K261: Trolig | R261: =SUM(L261:Q261) -> 0
C262: Välj intressent: | K262: Min | R262: =SUM(L262:Q262) -> 0
K263: Max | R263: =SUM(L263:Q263) -> 0
C264: Anteckningar
A277: 17 | C277: Välj nyttokategori: | F277: Trolig | G277: Min | H277: Max | I277: Källa | L277: =Startår -> 2019 | M277: =L277+1 -> 2020 | N277: =M277+1 -> 2021 | O277: =N277+1 -> 2022 | P277: =O277+1 -> 2023 | Q277: =P277+1 -> 2024 | R277: Summa
K278: Trolig | R278: =SUM(L278:Q278) -> 0
C279: Välj intressent: | K279: Min | R279: =SUM(L279:Q279) -> 0
K280: Max | R280: =SUM(L280:Q280) -> 0
C281: Anteckningar
A294: 18 | C294: Välj nyttokategori: | F294: Trolig | G294: Min | H294: Max | I294: Källa | L294: =Startår -> 2019 | M294: =L294+1 -> 2020 | N294: =M294+1 -> 2021 | O294: =N294+1 -> 2022 | P294: =O294+1 -> 2023 | Q294: =P294+1 -> 2024 | R294: Summa
K295: Trolig | R295: =SUM(L295:Q295) -> 0
C296: Välj intressent: | K296: Min | R296: =SUM(L296:Q296) -> 0
K297: Max | R297: =SUM(L297:Q297) -> 0
C298: Anteckningar
A311: 19 | C311: Välj nyttokategori: | F311: Trolig | G311: Min | H311: Max | I311: Källa | L311: =Startår -> 2019 | M311: =L311+1 -> 2020 | N311: =M311+1 -> 2021 | O311: =N311+1 -> 2022 | P311: =O311+1 -> 2023 | Q311: =P311+1 -> 2024 | R311: Summa
K312: Trolig | R312: =SUM(L312:Q312) -> 0
C313: Välj intressent: | K313: Min | R313: =SUM(L313:Q313) -> 0
K314: Max | R314: =SUM(L314:Q314) -> 0
C315: Anteckningar
A328: 20 | C328: Välj nyttokategori: | F328: Trolig | G328: Min | H328: Max | I328: Källa | L328: =Startår -> 2019 | M328: =L328+1 -> 2020 | N328: =M328+1 -> 2021 | O328: =N328+1 -> 2022 | P328: =O328+1 -> 2023 | Q328: =P328+1 -> 2024 | R328: Summa
K329: Trolig | R329: =SUM(L329:Q329) -> 0
C330: Välj intressent: | K330: Min | R330: =SUM(L330:Q330) -> 0
K331: Max | R331: =SUM(L331:Q331) -> 0
C332: Anteckningar
A345: 21 | C345: Välj nyttokategori: | F345: Trolig | G345: Min | H345: Max | I345: Källa | L345: =Startår -> 2019 | M345: =L345+1 -> 2020 | N345: =M345+1 -> 2021 | O345: =N345+1 -> 2022 | P345: =O345+1 -> 2023 | Q345: =P345+1 -> 2024 | R345: Summa
K346: Trolig | R346: =SUM(L346:Q346) -> 0
C347: Välj intressent: | K347: Min | R347: =SUM(L347:Q347) -> 0
K348: Max | R348: =SUM(L348:Q348) -> 0
C349: Anteckningar

Sheet Nyttor
B1: Nyttor
B2: =IF(Försättsblad!B6=0,"",Försättsblad!B6) -> Första linjens digitala vård - nya kanaler - bild och video
F4: Diskontering (justeras under 'Diskonteringsränta' på Försättsbladet) | R4: Min-värden med diskontering | AA4: Max-värden med diskontering
F5: =(1+Diskonteringsränta)^0 -> 1.000 | G5: =(1+Diskonteringsränta)^1 -> 1.030 | H5: =(1+Diskonteringsränta)^2 -> 1.061 | I5: =(1+Diskonteringsränta)^3 -> 1.093 | J5: =(1+Diskonteringsränta)^4 -> 1.126 | K5: =(1+Diskonteringsränta)^5 -> 1.159 | S5: =F5 -> 1.000 | T5: =G5 -> 1.030 | U5: 1.061 | V5: 1.093 | W5: 1.126 | X5: 1.159 | AB5: =F5 -> 1.000 | AC5: =G5 -> 1.030 | AD5: 1.061 | AE5: 1.093 | AF5: 1.126 | AG5: 1.159
F6: =Startår -> 2019 | G6: =F6+1 -> 2020 | H6: =G6+1 -> 2021 | I6: =H6+1 -> 2022 | J6: 2023 | K6: 2024
B7: ID | C7: Nyttokategori | D7: Nyttans namn | E7: Intressent | F7: År 1 | G7: År 2 | H7: År 3 | I7: År 4 | J7: År 5 | K7: År 6 | L7: Summa trolig | M7: Summa min | N7: Summa max | O7: Vägt medel | P7: Osäkerhet | R7: ID | S7: År 1 | T7: År 2 | U7: År 3 | V7: År 4 | W7: År 5 | X7: År 6 | Y7: Summa | AA7: ID | AB7: År 1 | AC7: År 2 | AD7: År 3 | AE7: År 4 | AF7: År 5 | AG7: År 6 | AH7: Summa
B8: 1 | C8: ='Räkna på nyttorna'!C6 -> 2. Omfördelningsnytta | D8: ='Räkna på nyttorna'!E5 -> Bild - frigjorda vårdbesök | E8: ='Räkna på nyttorna'!C8 -> Regioner | F8: ='Räkna på nyttorna'!L6/F5 -> 0 | G8: ='Räkna på nyttorna'!M6/G5 -> 0 | H8: ='Räkna på nyttorna'!N6/H5 -> 8,292,231 | I8: ='Räkna på nyttorna'!O6/I5 -> 24,152,129 | J8: ='Räkna på nyttorna'!P6/J5 -> 23,448,669 | K8: ='Räkna på nyttorna'!Q6/K5 -> 22,765,698 | L8: =SUM(Nyttor[[#This Row],[År 1]:[År 6]]) -> 78,658,728 | M8: =NyttorMin[[#This Row],[Summa]] -> 56,184,806 | N8: =NyttorMax[[#This Row],[Summa]] -> 112,369,612 | O8: =IF(OR(ISBLANK(N8),ISBLANK(M8),ISBLANK(L8)),"",(N8+M8+3*L8)/5) -> 80,906,121 | P8: =IF(OR(ISBLANK(L8),L8=0),"",(N8-M8)/5/L8) -> 14% | R8: =B8 -> 1 | S8: ='Räkna på nyttorna'!L7/S5 -> 0 | T8: ='Räkna på nyttorna'!M7/T5 -> 0 | U8: ='Räkna på nyttorna'!N7/U5 -> 5,923,022 | V8: ='Räkna på nyttorna'!O7/V5 -> 17,251,521 | W8: ='Räkna på nyttorna'!P7/W5 -> 16,749,050 | X8: ='Räkna på nyttorna'!Q7/X5 -> 16,261,213 | Y8: =SUM(NyttorMin[[#This Row],[År 1]:[År 6]]) -> 56,184,806 | AA8: 1 | AB8: ='Räkna på nyttorna'!L8/AB5 -> 0 | AC8: ='Räkna på nyttorna'!M8/AC5 -> 0 | AD8: ='Räkna på nyttorna'!N8/AD5 -> 11,846,044 | AE8: ='Räkna på nyttorna'!O8/AE5 -> 34,503,042 | AF8: ='Räkna på nyttorna'!P8/AF5 -> 33,498,099 | AG8: ='Räkna på nyttorna'!Q8/AG5 -> 32,522,426 | AH8: =SUM(NyttorMax[[#This Row],[År 1]:[År 6]]) -> 112,369,612
B9: 2 | C9: ='Räkna på nyttorna'!C23 -> 2. Omfördelningsnytta | D9: ='Räkna på nyttorna'!E22 -> Bild - sparar tid för invånare | E9: ='Räkna på nyttorna'!C25 -> Invånare | F9: ='Räkna på nyttorna'!L23/F5 -> 0 | G9: ='Räkna på nyttorna'!M23/G5 -> 0 | H9: ='Räkna på nyttorna'!N23/H5 -> 1,244,807 | I9: ='Räkna på nyttorna'!O23/I5 -> 3,625,651 | J9: ='Räkna på nyttorna'!P23/J5 -> 3,520,049 | K9: ='Räkna på nyttorna'!Q23/K5 -> 3,417,524 | L9: =SUM(Nyttor[[#This Row],[År 1]:[År 6]]) -> 11,808,031 | M9: =NyttorMin[[#This Row],[Summa]] -> 6,487,929 | N9: =NyttorMax[[#This Row],[Summa]] -> 12,975,858 | O9: 10,977,576 | P9: 11% | R9: 2 | S9: ='Räkna på nyttorna'!L24/S5 -> 0 | T9: ='Räkna på nyttorna'!M24/T5 -> 0 | U9: ='Räkna på nyttorna'!N24/U5 -> 683,960 | V9: ='Räkna på nyttorna'!O24/V5 -> 1,992,116 | W9: ='Räkna på nyttorna'!P24/W5 -> 1,934,093 | X9: ='Räkna på nyttorna'!Q24/X5 -> 1,877,760 | Y9: =SUM(NyttorMin[[#This Row],[År 1]:[År 6]]) -> 6,487,929 | AA9: 2 | AB9: ='Räkna på nyttorna'!L25/AB5 -> 0 | AC9: ='Räkna på nyttorna'!M25/AC5 -> 0 | AD9: ='Räkna på nyttorna'!N25/AD5 -> 1,367,920 | AE9: ='Räkna på nyttorna'!O25/AE5 -> 3,984,232 | AF9: ='Räkna på nyttorna'!P25/AF5 -> 3,868,186 | AG9: ='Räkna på nyttorna'!Q25/AG5 -> 3,755,521 | AH9: =SUM(NyttorMax[[#This Row],[År 1]:[År 6]]) -> 12,975,858
B10: 3 | C10: ='Räkna på nyttorna'!C40 -> 1. Finansiell | D10: ='Räkna på nyttorna'!E39 -> Bild - sparar pengar för invånare | E10: Invånare | F10: ='Räkna på nyttorna'!L40/F5 -> 0 | G10: ='Räkna på nyttorna'!M40/G5 -> 0 | H10: ='Räkna på nyttorna'!N40/H5 -> 947,822 | I10: ='Räkna på nyttorna'!O40/I5 -> 2,760,648 | J10: ='Räkna på nyttorna'!P40/J5 -> 2,680,241 | K10: ='Räkna på nyttorna'!Q40/K5 -> 2,602,175 | L10: =SUM(Nyttor[[#This Row],[År 1]:[År 6]]) -> 8,990,886 | M10: =NyttorMin[[#This Row],[Summa]] -> 6,422,062 | N10: =NyttorMax[[#This Row],[Summa]] -> 12,844,123 | O10: 9,247,769 | P10: 14% | R10: 3 | S10: ='Räkna på nyttorna'!L41/S5 -> 0 | T10: ='Räkna på nyttorna'!M41/T5 -> 0 | U10: ='Räkna på nyttorna'!N41/U5 -> 677,016 | V10: ='Räkna på nyttorna'!O41/V5 -> 1,971,891 | W10: ='Räkna på nyttorna'!P41/W5 -> 1,914,458 | X10: ='Räkna på nyttorna'!Q41/X5 -> 1,858,697 | Y10: =SUM(NyttorMin[[#This Row],[År 1]:[År 6]]) -> 6,422,062 | AA10: 3 | AB10: ='Räkna på nyttorna'!L42/AB5 -> 0 | AC10: ='Räkna på nyttorna'!M42/AC5 -> 0 | AD10: ='Räkna på nyttorna'!N42/AD5 -> 1,354,032 | AE10: ='Räkna på nyttorna'!O42/AE5 -> 3,943,783 | AF10: ='Räkna på nyttorna'!P42/AF5 -> 3,828,915 | AG10: ='Räkna på nyttorna'!Q42/AG5 -> 3,717,393 | AH10: =SUM(NyttorMax[[#This Row],[År 1]:[År 6]]) -> 12,844,123
B11: 4 | C11: ='Räkna på nyttorna'!C57 -> 2. Omfördelningsnytta | D11: ='Räkna på nyttorna'!E56 -> Video - frigjorda vårdbesök | E11: ='Räkna på nyttorna'!C59 -> Regioner | F11: ='Räkna på nyttorna'!L57/F5 -> 0 | G11: ='Räkna på nyttorna'!M57/G5 -> 0 | H11: ='Räkna på nyttorna'!N57/H5 -> 4,105,988 | I11: ='Räkna på nyttorna'!O57/I5 -> 11,959,187 | J11: ='Räkna på nyttorna'!P57/J5 -> 34,832,583 | K11: ='Räkna på nyttorna'!Q57/K5 -> 33,818,042 | L11: =SUM(Nyttor[[#This Row],[År 1]:[År 6]]) -> 84,715,800 | M11: =NyttorMin[[#This Row],[Summa]] -> 60,511,285 | N11: =NyttorMax[[#This Row],[Summa]] -> 112,954,399 | O11: 85,522,617 | P11: 12% | R11: 4 | S11: ='Räkna på nyttorna'!L58/S5 -> 0 | T11: ='Räkna på nyttorna'!M58/T5 -> 0 | U11: ='Räkna på nyttorna'!N58/U5 -> 2,932,848 | V11: ='Räkna på nyttorna'!O58/V5 -> 8,542,276 | W11: ='Räkna på nyttorna'!P58/W5 -> 24,880,417 | X11: ='Räkna på nyttorna'!Q58/X5 -> 24,155,744 | Y11: =SUM(NyttorMin[[#This Row],[År 1]:[År 6]]) -> 60,511,285 | AA11: 4 | AB11: ='Räkna på nyttorna'!L59/AB5 -> 0 | AC11: ='Räkna på nyttorna'!M59/AC5 -> 0 | AD11: ='Räkna på nyttorna'!N59/AD5 -> 5,474,650 | AE11: ='Räkna på nyttorna'!O59/AE5 -> 15,945,583 | AF11: ='Räkna på nyttorna'!P59/AF5 -> 46,443,444 | AG11: ='Räkna på nyttorna'!Q59/AG5 -> 45,090,723 | AH11: =SUM(NyttorMax[[#This Row],[År 1]:[År 6]]) -> 112,954,399
B12: 5 | C12: ='Räkna på nyttorna'!C74 -> 2. Omfördelningsnytta | D12: ='Räkna på nyttorna'!E73 -> Video - sparar tid | E12: ='Räkna på nyttorna'!C76 -> Invånare | F12: ='Räkna på nyttorna'!L74/F5 -> 0 | G12: ='Räkna på nyttorna'!M74/G5 -> 0 | H12: ='Räkna på nyttorna'!N74/H5 -> 616,379 | I12: ='Räkna på nyttorna'!O74/I5 -> 1,795,280 | J12: ='Räkna på nyttorna'!P74/J5 -> 5,228,971 | K12: ='Räkna på nyttorna'!Q74/K5 -> 5,076,671 | L12: =SUM(Nyttor[[#This Row],[År 1]:[År 6]]) -> 12,717,301 | M12: =NyttorMin[[#This Row],[Summa]] -> 6,987,528 | N12: =NyttorMax[[#This Row],[Summa]] -> 13,043,386 | O12: 11,636,564 | P12: 10% | R12: 5 | S12: ='Räkna på nyttorna'!L75/S5 -> 0 | T12: ='Räkna på nyttorna'!M75/T5 -> 0 | U12: ='Räkna på nyttorna'!N75/U5 -> 338,670 | V12: ='Räkna på nyttorna'!O75/V5 -> 986,418 | W12: ='Räkna på nyttorna'!P75/W5 -> 2,873,061 | X12: ='Räkna på nyttorna'!Q75/X5 -> 2,789,380 | Y12: =SUM(NyttorMin[[#This Row],[År 1]:[År 6]]) -> 6,987,528 | AA12: 5 | AB12: ='Räkna på nyttorna'!L76/AB5 -> 0 | AC12: ='Räkna på nyttorna'!M76/AC5 -> 0 | AD12: ='Räkna på nyttorna'!N76/AD5 -> 632,184 | AE12: ='Räkna på nyttorna'!O76/AE5 -> 1,841,313 | AF12: ='Räkna på nyttorna'!P76/AF5 -> 5,363,047 | AG12: ='Räkna på nyttorna'!Q76/AG5 -> 5,206,842 | AH12: =SUM(NyttorMax[[#This Row],[År 1]:[År 6]]) -> 13,043,386
B13: 6 | C13: ='Räkna på nyttorna'!C91 -> 1. Finansiell | D13: ='Räkna på nyttorna'!E90 -> Video - sparar pengar | E13: ='Räkna på nyttorna'!C93 -> Invånare | F13: ='Räkna på nyttorna'!L91/F5 -> 0 | G13: ='Räkna på nyttorna'!M91/G5 -> 0 | H13: ='Räkna på nyttorna'!N91/H5 -> 469,324 | I13: ='Räkna på nyttorna'!O91/I5 -> 1,366,965 | J13: ='Räkna på nyttorna'!P91/J5 -> 3,981,450 | K13: ='Räkna på nyttorna'!Q91/K5 -> 3,865,485 | L13: =SUM(Nyttor[[#This Row],[År 1]:[År 6]]) -> 9,683,224 | M13: =NyttorMin[[#This Row],[Summa]] -> 6,916,589 | N13: =NyttorMax[[#This Row],[Summa]] -> 12,910,966 | O13: 9,775,446 | P13: 12% | R13: 6 | S13: ='Räkna på nyttorna'!L92/S5 -> 0 | T13: ='Räkna på nyttorna'!M92/T5 -> 0 | U13: ='Räkna på nyttorna'!N92/U5 -> 335,232 | V13: ='Räkna på nyttorna'!O92/V5 -> 976,403 | W13: ='Räkna på nyttorna'!P92/W5 -> 2,843,893 | X13: ='Räkna på nyttorna'!Q92/X5 -> 2,761,061 | Y13: =SUM(NyttorMin[[#This Row],[År 1]:[År 6]]) -> 6,916,589 | AA13: 6 | AB13: ='Räkna på nyttorna'!L93/AB5 -> 0 | AC13: ='Räkna på nyttorna'!M93/AC5 -> 0 | AD13: ='Räkna på nyttorna'!N93/AD5 -> 625,766 | AE13: ='Räkna på nyttorna'!O93/AE5 -> 1,822,619 | AF13: ='Räkna på nyttorna'!P93/AF5 -> 5,308,600 | AG13: ='Räkna på nyttorna'!Q93/AG5 -> 5,153,981 | AH13: =SUM(NyttorMax[[#This Row],[År 1]:[År 6]]) -> 12,910,966
B14: 7 | C14: ='Räkna på nyttorna'!C108 -> 0 | D14: ='Räkna på nyttorna'!E107 -> 0 | E14: ='Räkna på nyttorna'!C110 -> 0 | F14: ='Räkna på nyttorna'!L108/F5 -> 0 | G14: ='Räkna på nyttorna'!M108/G5 -> 0 | H14: ='Räkna på nyttorna'!N108/H5 -> 0 | I14: ='Räkna på nyttorna'!O108/I5 -> 0 | J14: ='Räkna på nyttorna'!P108/J5 -> 0 | K14: ='Räkna på nyttorna'!Q108/K5 -> 0 | L14: =SUM(Nyttor[[#This Row],[År 1]:[År 6]]) -> 0 | M14: =NyttorMin[[#This Row],[Summa]] -> 0 | N14: =NyttorMax[[#This Row],[Summa]] -> 0 | O14: 0 | R14: 7 | S14: ='Räkna på nyttorna'!L109/S5 -> 0 | T14: ='Räkna på nyttorna'!M109/T5 -> 0 | U14: ='Räkna på nyttorna'!N109/U5 -> 0 | V14: ='Räkna på nyttorna'!O109/V5 -> 0 | W14: ='Räkna på nyttorna'!P109/W5 -> 0 | X14: ='Räkna på nyttorna'!Q109/X5 -> 0 | Y14: =SUM(NyttorMin[[#This Row],[År 1]:[År 6]]) -> 0 | AA14: 7 | AB14: ='Räkna på nyttorna'!L110/AB5 -> 0 | AC14: ='Räkna på nyttorna'!M110/AC5 -> 0 | AD14: ='Räkna på nyttorna'!N110/AD5 -> 0 | AE14: ='Räkna på nyttorna'!O110/AE5 -> 0 | AF14: ='Räkna på nyttorna'!P110/AF5 -> 0 | AG14: ='Räkna på nyttorna'!Q110/AG5 -> 0 | AH14: =SUM(NyttorMax[[#This Row],[År 1]:[År 6]]) -> 0
B15: 8 | C15: ='Räkna på nyttorna'!C125 -> 0 | D15: ='Räkna på nyttorna'!E124 -> 0 | E15: ='Räkna på nyttorna'!C127 -> 0 | F15: ='Räkna på nyttorna'!L125/F5 -> 0 | G15: ='Räkna på nyttorna'!M125/G5 -> 0 | H15: ='Räkna på nyttorna'!N125/H5 -> 0 | I15: ='Räkna på nyttorna'!O125/I5 -> 0 | J15: ='Räkna på nyttorna'!P125/J5 -> 0 | K15: ='Räkna på nyttorna'!Q125/K5 -> 0 | L15: =SUM(Nyttor[[#This Row],[År 1]:[År 6]]) -> 0 | M15: =NyttorMin[[#This Row],[Summa]] -> 0 | N15: =NyttorMax[[#This Row],[Summa]] -> 0 | O15: 0 | R15: 8 | S15: ='Räkna på nyttorna'!L126/S5 -> 0 | T15: ='Räkna på nyttorna'!M126/T5 -> 0 | U15: ='Räkna på nyttorna'!N126/U5 -> 0 | V15: ='Räkna på nyttorna'!O126/V5 -> 0 | W15: ='Räkna på nyttorna'!P126/W5 -> 0 | X15: ='Räkna på nyttorna'!Q126/X5 -> 0 | Y15: =SUM(NyttorMin[[#This Row],[År 1]:[År 6]]) -> 0 | AA15: 8 | AB15: ='Räkna på nyttorna'!L127/AB5 -> 0 | AC15: ='Räkna på nyttorna'!M127/AC5 -> 0 | AD15: ='Räkna på nyttorna'!N127/AD5 -> 0 | AE15: ='Räkna på nyttorna'!O127/AE5 -> 0 | AF15: ='Räkna på nyttorna'!P127/AF5 -> 0 | AG15: ='Räkna på nyttorna'!Q127/AG5 -> 0 | AH15: =SUM(NyttorMax[[#This Row],[År 1]:[År 6]]) -> 0
B16: 9 | C16: ='Räkna på nyttorna'!C142 -> 0 | D16: ='Räkna på nyttorna'!E141 -> 0 | E16: ='Räkna på nyttorna'!C144 -> 0 | F16: ='Räkna på nyttorna'!L142/F5 -> 0 | G16: ='Räkna på nyttorna'!M142/G5 -> 0 | H16: ='Räkna på nyttorna'!N142/H5 -> 0 | I16: ='Räkna på nyttorna'!O142/I5 -> 0 | J16: ='Räkna på nyttorna'!P142/J5 -> 0 | K16: ='Räkna på nyttorna'!Q142/K5 -> 0 | L16: =SUM(Nyttor[[#This Row],[År 1]:[År 6]]) -> 0 | M16: =NyttorMin[[#This Row],[Summa]] -> 0 | N16: =NyttorMax[[#This Row],[Summa]] -> 0 | O16: 0 | R16: 9 | S16: ='Räkna på nyttorna'!L143/S5 -> 0 | T16: ='Räkna på nyttorna'!M143/T5 -> 0 | U16: ='Räkna på nyttorna'!N143/U5 -> 0 | V16: ='Räkna på nyttorna'!O143/V5 -> 0 | W16: ='Räkna på nyttorna'!P143/W5 -> 0 | X16: ='Räkna på nyttorna'!Q143/X5 -> 0 | Y16: =SUM(NyttorMin[[#This Row],[År 1]:[År 6]]) -> 0 | AA16: 9 | AB16: ='Räkna på nyttorna'!L144/AB5 -> 0 | AC16: ='Räkna på nyttorna'!M144/AC5 -> 0 | AD16: ='Räkna på nyttorna'!N144/AD5 -> 0 | AE16: ='Räkna på nyttorna'!O144/AE5 -> 0 | AF16: ='Räkna på nyttorna'!P144/AF5 -> 0 | AG16: ='Räkna på nyttorna'!Q144/AG5 -> 0 | AH16: =SUM(NyttorMax[[#This Row],[År 1]:[År 6]]) -> 0
B17: 10 | C17: ='Räkna på nyttorna'!C159 -> 0 | D17: ='Räkna på nyttorna'!E158 -> 0 | E17: ='Räkna på nyttorna'!C161 -> 0 | F17: ='Räkna på nyttorna'!L159/F5 -> 0 | G17: ='Räkna på nyttorna'!M159/G5 -> 0 | H17: ='Räkna på nyttorna'!N159/H5 -> 0 | I17: ='Räkna på nyttorna'!O159/I5 -> 0 | J17: ='Räkna på nyttorna'!P159/J5 -> 0 | K17: ='Räkna på nyttorna'!Q159/K5 -> 0 | L17: =SUM(Nyttor[[#This Row],[År 1]:[År 6]]) -> 0 | M17: =NyttorMin[[#This Row],[Summa]] -> 0 | N17: =NyttorMax[[#This Row],[Summa]] -> 0 | O17: 0 | R17: 10 | S17: ='Räkna på nyttorna'!L160/S5 -> 0 | T17: ='Räkna på nyttorna'!M160/T5 -> 0 | U17: ='Räkna på nyttorna'!N160/U5 -> 0 | V17: ='Räkna på nyttorna'!O160/V5 -> 0 | W17: ='Räkna på nyttorna'!P160/W5 -> 0 | X17: ='Räkna på nyttorna'!Q160/X5 -> 0 | Y17: =SUM(NyttorMin[[#This Row],[År 1]:[År 6]]) -> 0 | AA17: 10 | AB17: ='Räkna på nyttorna'!L161/AB5 -> 0 | AC17: ='Räkna på nyttorna'!M161/AC5 -> 0 | AD17: ='Räkna på nyttorna'!N161/AD5 -> 0 | AE17: ='Räkna på nyttorna'!O161/AE5 -> 0 | AF17: ='Räkna på nyttorna'!P161/AF5 -> 0 | AG17: ='Räkna på nyttorna'!Q161/AG5 -> 0 | AH17: =SUM(NyttorMax[[#This Row],[År 1]:[År 6]]) -> 0
B18: 11 | C18: ='Räkna på nyttorna'!C176 -> 0 | D18: ='Räkna på nyttorna'!E175 -> 0 | E18: ='Räkna på nyttorna'!C178 -> 0 | F18: ='Räkna på nyttorna'!L176/F5 -> 0 | G18: ='Räkna på nyttorna'!M176/G5 -> 0 | H18: ='Räkna på nyttorna'!N176/H5 -> 0 | I18: ='Räkna på nyttorna'!O176/I5 -> 0 | J18: ='Räkna på nyttorna'!P176/J5 -> 0 | K18: ='Räkna på nyttorna'!Q176/K5 -> 0 | L18: =SUM(Nyttor[[#This Row],[År 1]:[År 6]]) -> 0 | M18: =NyttorMin[[#This Row],[Summa]] -> 0 | N18: =NyttorMax[[#This Row],[Summa]] -> 0 | O18: 0 | R18: 11 | S18: ='Räkna på nyttorna'!L177/S5 -> 0 | T18: ='Räkna på nyttorna'!M177/T5 -> 0 | U18: ='Räkna på nyttorna'!N177/U5 -> 0 | V18: ='Räkna på nyttorna'!O177/V5 -> 0 | W18: ='Räkna på nyttorna'!P177/W5 -> 0 | X18: ='Räkna på nyttorna'!Q177/X5 -> 0 | Y18: =SUM(NyttorMin[[#This Row],[År 1]:[År 6]]) -> 0 | AA18: 11 | AB18: ='Räkna på nyttorna'!L178/AB5 -> 0 | AC18: ='Räkna på nyttorna'!M178/AC5 -> 0 | AD18: ='Räkna på nyttorna'!N178/AD5 -> 0 | AE18: ='Räkna på nyttorna'!O178/AE5 -> 0 | AF18: ='Räkna på nyttorna'!P178/AF5 -> 0 | AG18: ='Räkna på nyttorna'!Q178/AG5 -> 0 | AH18: =SUM(NyttorMax[[#This Row],[År 1]:[År 6]]) -> 0
B19: 12 | C19: ='Räkna på nyttorna'!C193 -> 0 | D19: ='Räkna på nyttorna'!E192 -> 0 | E19: ='Räkna på nyttorna'!C195 -> 0 | F19: ='Räkna på nyttorna'!L193/F5 -> 0 | G19: ='Räkna på nyttorna'!M193/G5 -> 0 | H19: ='Räkna på nyttorna'!N193/H5 -> 0 | I19: ='Räkna på nyttorna'!O193/I5 -> 0 | J19: ='Räkna på nyttorna'!P193/J5 -> 0 | K19: ='Räkna på nyttorna'!Q193/K5 -> 0 | L19: =SUM(Nyttor[[#This Row],[År 1]:[År 6]]) -> 0 | M19: =NyttorMin[[#This Row],[Summa]] -> 0 | N19: =NyttorMax[[#This Row],[Summa]] -> 0 | O19: 0 | R19: 12 | S19: ='Räkna på nyttorna'!L194/S5 -> 0 | T19: ='Räkna på nyttorna'!M194/T5 -> 0 | U19: ='Räkna på nyttorna'!N194/U5 -> 0 | V19: ='Räkna på nyttorna'!O194/V5 -> 0 | W19: ='Räkna på nyttorna'!P194/W5 -> 0 | X19: ='Räkna på nyttorna'!Q194/X5 -> 0 | Y19: =SUM(NyttorMin[[#This Row],[År 1]:[År 6]]) -> 0 | AA19: 12 | AB19: ='Räkna på nyttorna'!L195/AB5 -> 0 | AC19: ='Räkna på nyttorna'!M195/AC5 -> 0 | AD19: ='Räkna på nyttorna'!N195/AD5 -> 0 | AE19: ='Räkna på nyttorna'!O195/AE5 -> 0 | AF19: ='Räkna på nyttorna'!P195/AF5 -> 0 | AG19: ='Räkna på nyttorna'!Q195/AG5 -> 0 | AH19: =SUM(NyttorMax[[#This Row],[År 1]:[År 6]]) -> 0
B20: 13 | C20: ='Räkna på nyttorna'!C210 -> 0 | D20: ='Räkna på nyttorna'!E209 -> 0 | E20: ='Räkna på nyttorna'!C212 -> 0 | F20: ='Räkna på nyttorna'!L210/F5 -> 0 | G20: ='Räkna på nyttorna'!M210/G5 -> 0 | H20: ='Räkna på nyttorna'!N210/H5 -> 0 | I20: ='Räkna på nyttorna'!O210/I5 -> 0 | J20: ='Räkna på nyttorna'!P210/J5 -> 0 | K20: ='Räkna på nyttorna'!Q210/K5 -> 0 | L20: =SUM(Nyttor[[#This Row],[År 1]:[År 6]]) -> 0 | M20: =NyttorMin[[#This Row],[Summa]] -> 0 | N20: =NyttorMax[[#This Row],[Summa]] -> 0 | O20: 0 | R20: 13 | S20: ='Räkna på nyttorna'!L211/S5 -> 0 | T20: ='Räkna på nyttorna'!M211/T5 -> 0 | U20: ='Räkna på nyttorna'!N211/U5 -> 0 | V20: ='Räkna på nyttorna'!O211/V5 -> 0 | W20: ='Räkna på nyttorna'!P211/W5 -> 0 | X20: ='Räkna på nyttorna'!Q211/X5 -> 0 | Y20: =SUM(NyttorMin[[#This Row],[År 1]:[År 6]]) -> 0 | AA20: 13 | AB20: ='Räkna på nyttorna'!L212/AB5 -> 0 | AC20: ='Räkna på nyttorna'!M212/AC5 -> 0 | AD20: ='Räkna på nyttorna'!N212/AD5 -> 0 | AE20: ='Räkna på nyttorna'!O212/AE5 -> 0 | AF20: ='Räkna på nyttorna'!P212/AF5 -> 0 | AG20: ='Räkna på nyttorna'!Q212/AG5 -> 0 | AH20: =SUM(NyttorMax[[#This Row],[År 1]:[År 6]]) -> 0
B21: 14 | C21: ='Räkna på nyttorna'!C227 -> 0 | D21: ='Räkna på nyttorna'!E226 -> 0 | E21: ='Räkna på nyttorna'!C229 -> 0 | F21: ='Räkna på nyttorna'!L227/F5 -> 0 | G21: ='Räkna på nyttorna'!M227/G5 -> 0 | H21: ='Räkna på nyttorna'!N227/H5 -> 0 | I21: ='Räkna på nyttorna'!O227/I5 -> 0 | J21: ='Räkna på nyttorna'!P227/J5 -> 0 | K21: ='Räkna på nyttorna'!Q227/K5 -> 0 | L21: =SUM(Nyttor[[#This Row],[År 1]:[År 6]]) -> 0 | M21: =NyttorMin[[#This Row],[Summa]] -> 0 | N21: =NyttorMax[[#This Row],[Summa]] -> 0 | O21: 0 | R21: 14 | S21: ='Räkna på nyttorna'!L228/S5 -> 0 | T21: ='Räkna på nyttorna'!M228/T5 -> 0 | U21: ='Räkna på nyttorna'!N228/U5 -> 0 | V21: ='Räkna på nyttorna'!O228/V5 -> 0 | W21: ='Räkna på nyttorna'!P228/W5 -> 0 | X21: ='Räkna på nyttorna'!Q228/X5 -> 0 | Y21: =SUM(NyttorMin[[#This Row],[År 1]:[År 6]]) -> 0 | AA21: 14 | AB21: ='Räkna på nyttorna'!L229/AB5 -> 0 | AC21: ='Räkna på nyttorna'!M229/AC5 -> 0 | AD21: ='Räkna på nyttorna'!N229/AD5 -> 0 | AE21: ='Räkna på nyttorna'!O229/AE5 -> 0 | AF21: ='Räkna på nyttorna'!P229/AF5 -> 0 | AG21: ='Räkna på nyttorna'!Q229/AG5 -> 0 | AH21: =SUM(NyttorMax[[#This Row],[År 1]:[År 6]]) -> 0
B22: 15 | C22: ='Räkna på nyttorna'!C244 -> 0 | D22: ='Räkna på nyttorna'!E243 -> 0 | E22: ='Räkna på nyttorna'!C246 -> 0 | F22: ='Räkna på nyttorna'!L244/F5 -> 0 | G22: ='Räkna på nyttorna'!M244/G5 -> 0 | H22: ='Räkna på nyttorna'!N244/H5 -> 0 | I22: ='Räkna på nyttorna'!O244/I5 -> 0 | J22: ='Räkna på nyttorna'!P244/J5 -> 0 | K22: ='Räkna på nyttorna'!Q244/K5 -> 0 | L22: =SUM(Nyttor[[#This Row],[År 1]:[År 6]]) -> 0 | M22: =NyttorMin[[#This Row],[Summa]] -> 0 | N22: =NyttorMax[[#This Row],[Summa]] -> 0 | O22: 0 | R22: 15 | S22: ='Räkna på nyttorna'!L245/S5 -> 0 | T22: ='Räkna på nyttorna'!M245/T5 -> 0 | U22: ='Räkna på nyttorna'!N245/U5 -> 0 | V22: ='Räkna på nyttorna'!O245/V5 -> 0 | W22: ='Räkna på nyttorna'!P245/W5 -> 0 | X22: ='Räkna på nyttorna'!Q245/X5 -> 0 | Y22: =SUM(NyttorMin[[#This Row],[År 1]:[År 6]]) -> 0 | AA22: 15 | AB22: ='Räkna på nyttorna'!L246/AB5 -> 0 | AC22: ='Räkna på nyttorna'!M246/AC5 -> 0 | AD22: ='Räkna på nyttorna'!N246/AD5 -> 0 | AE22: ='Räkna på nyttorna'!O246/AE5 -> 0 | AF22: ='Räkna på nyttorna'!P246/AF5 -> 0 | AG22: ='Räkna på nyttorna'!Q246/AG5 -> 0 | AH22: =SUM(NyttorMax[[#This Row],[År 1]:[År 6]]) -> 0
B23: 16 | C23: ='Räkna på nyttorna'!C261 -> 0 | D23: ='Räkna på nyttorna'!E260 -> 0 | E23: ='Räkna på nyttorna'!C263 -> 0 | F23: ='Räkna på nyttorna'!L261/F5 -> 0 | G23: ='Räkna på nyttorna'!M261/G5 -> 0 | H23: ='Räkna på nyttorna'!N261/H5 -> 0 | I23: ='Räkna på nyttorna'!O261/I5 -> 0 | J23: ='Räkna på nyttorna'!P261/J5 -> 0 | K23: ='Räkna på nyttorna'!Q261/K5 -> 0 | L23: =SUM(Nyttor[[#This Row],[År 1]:[År 6]]) -> 0 | M23: =NyttorMin[[#This Row],[Summa]] -> 0 | N23: =NyttorMax[[#This Row],[Summa]] -> 0 | O23: 0 | R23: 16 | S23: ='Räkna på nyttorna'!L262/S5 -> 0 | T23: ='Räkna på nyttorna'!M262/T5 -> 0 | U23: ='Räkna på nyttorna'!N262/U5 -> 0 | V23: ='Räkna på nyttorna'!O262/V5 -> 0 | W23: ='Räkna på nyttorna'!P262/W5 -> 0 | X23: ='Räkna på nyttorna'!Q262/X5 -> 0 | Y23: =SUM(NyttorMin[[#This Row],[År 1]:[År 6]]) -> 0 | AA23: 16 | AB23: ='Räkna på nyttorna'!L263/AB5 -> 0 | AC23: ='Räkna på nyttorna'!M263/AC5 -> 0 | AD23: ='Räkna på nyttorna'!N263/AD5 -> 0 | AE23: ='Räkna på nyttorna'!O263/AE5 -> 0 | AF23: ='Räkna på nyttorna'!P263/AF5 -> 0 | AG23: ='Räkna på nyttorna'!Q263/AG5 -> 0 | AH23: =SUM(NyttorMax[[#This Row],[År 1]:[År 6]]) -> 0
B24: 17 | C24: ='Räkna på nyttorna'!C278 -> 0 | D24: ='Räkna på nyttorna'!E277 -> 0 | E24: ='Räkna på nyttorna'!C280 -> 0 | F24: ='Räkna på nyttorna'!L278/F5 -> 0 | G24: ='Räkna på nyttorna'!M278/G5 -> 0 | H24: ='Räkna på nyttorna'!N278/H5 -> 0 | I24: ='Räkna på nyttorna'!O278/I5 -> 0 | J24: ='Räkna på nyttorna'!P278/J5 -> 0 | K24: ='Räkna på nyttorna'!Q278/K5 -> 0 | L24: =SUM(Nyttor[[#This Row],[År 1]:[År 6]]) -> 0 | M24: =NyttorMin[[#This Row],[Summa]] -> 0 | N24: =NyttorMax[[#This Row],[Summa]] -> 0 | O24: 0 | R24: 17 | S24: ='Räkna på nyttorna'!L279/S5 -> 0 | T24: ='Räkna på nyttorna'!M279/T5 -> 0 | U24: ='Räkna på nyttorna'!N279/U5 -> 0 | V24: ='Räkna på nyttorna'!O279/V5 -> 0 | W24: ='Räkna på nyttorna'!P279/W5 -> 0 | X24: ='Räkna på nyttorna'!Q279/X5 -> 0 | Y24: =SUM(NyttorMin[[#This Row],[År 1]:[År 6]]) -> 0 | AA24: 17 | AB24: ='Räkna på nyttorna'!L280/AB5 -> 0 | AC24: ='Räkna på nyttorna'!M280/AC5 -> 0 | AD24: ='Räkna på nyttorna'!N280/AD5 -> 0 | AE24: ='Räkna på nyttorna'!O280/AE5 -> 0 | AF24: ='Räkna på nyttorna'!P280/AF5 -> 0 | AG24: ='Räkna på nyttorna'!Q280/AG5 -> 0 | AH24: =SUM(NyttorMax[[#This Row],[År 1]:[År 6]]) -> 0
B25: 18 | C25: ='Räkna på nyttorna'!C295 -> 0 | D25: ='Räkna på nyttorna'!E294 -> 0 | E25: ='Räkna på nyttorna'!C297 -> 0 | F25: ='Räkna på nyttorna'!L295/F5 -> 0 | G25: ='Räkna på nyttorna'!M295/G5 -> 0 | H25: ='Räkna på nyttorna'!N295/H5 -> 0 | I25: ='Räkna på nyttorna'!O295/I5 -> 0 | J25: ='Räkna på nyttorna'!P295/J5 -> 0 | K25: ='Räkna på nyttorna'!Q295/K5 -> 0 | L25: =SUM(Nyttor[[#This Row],[År 1]:[År 6]]) -> 0 | M25: =NyttorMin[[#This Row],[Summa]] -> 0 | N25: =NyttorMax[[#This Row],[Summa]] -> 0 | O25: 0 | R25: 18 | S25: ='Räkna på nyttorna'!L296/S5 -> 0 | T25: ='Räkna på nyttorna'!M296/T5 -> 0 | U25: ='Räkna på nyttorna'!N296/U5 -> 0 | V25: ='Räkna på nyttorna'!O296/V5 -> 0 | W25: ='Räkna på nyttorna'!P296/W5 -> 0 | X25: ='Räkna på nyttorna'!Q296/X5 -> 0 | Y25: =SUM(NyttorMin[[#This Row],[År 1]:[År 6]]) -> 0 | AA25: 18 | AB25: ='Räkna på nyttorna'!L297/AB5 -> 0 | AC25: ='Räkna på nyttorna'!M297/AC5 -> 0 | AD25: ='Räkna på nyttorna'!N297/AD5 -> 0 | AE25: ='Räkna på nyttorna'!O297/AE5 -> 0 | AF25: ='Räkna på nyttorna'!P297/AF5 -> 0 | AG25: ='Räkna på nyttorna'!Q297/AG5 -> 0 | AH25: =SUM(NyttorMax[[#This Row],[År 1]:[År 6]]) -> 0
B26: 19 | C26: ='Räkna på nyttorna'!C312 -> 0 | D26: ='Räkna på nyttorna'!E311 -> 0 | E26: ='Räkna på nyttorna'!C314 -> 0 | F26: ='Räkna på nyttorna'!L312/F5 -> 0 | G26: ='Räkna på nyttorna'!M312/G5 -> 0 | H26: ='Räkna på nyttorna'!N312/H5 -> 0 | I26: ='Räkna på nyttorna'!O312/I5 -> 0 | J26: ='Räkna på nyttorna'!P312/J5 -> 0 | K26: ='Räkna på nyttorna'!Q312/K5 -> 0 | L26: =SUM(Nyttor[[#This Row],[År 1]:[År 6]]) -> 0 | M26: =NyttorMin[[#This Row],[Summa]] -> 0 | N26: =NyttorMax[[#This Row],[Summa]] -> 0 | O26: 0 | R26: 19 | S26: ='Räkna på nyttorna'!L313/S5 -> 0 | T26: ='Räkna på nyttorna'!M313/T5 -> 0 | U26: ='Räkna på nyttorna'!N313/U5 -> 0 | V26: ='Räkna på nyttorna'!O313/V5 -> 0 | W26: ='Räkna på nyttorna'!P313/W5 -> 0 | X26: ='Räkna på nyttorna'!Q313/X5 -> 0 | Y26: =SUM(NyttorMin[[#This Row],[År 1]:[År 6]]) -> 0 | AA26: 19 | AB26: ='Räkna på nyttorna'!L314/AB5 -> 0 | AC26: ='Räkna på nyttorna'!M314/AC5 -> 0 | AD26: ='Räkna på nyttorna'!N314/AD5 -> 0 | AE26: ='Räkna på nyttorna'!O314/AE5 -> 0 | AF26: ='Räkna på nyttorna'!P314/AF5 -> 0 | AG26: ='Räkna på nyttorna'!Q314/AG5 -> 0 | AH26: =SUM(NyttorMax[[#This Row],[År 1]:[År 6]]) -> 0
B27: 20 | C27: ='Räkna på nyttorna'!C329 -> 0 | D27: ='Räkna på nyttorna'!E328 -> 0 | E27: ='Räkna på nyttorna'!C331 -> 0 | F27: ='Räkna på nyttorna'!L329/F5 -> 0 | G27: ='Räkna på nyttorna'!M329/G5 -> 0 | H27: ='Räkna på nyttorna'!N329/H5 -> 0 | I27: ='Räkna på nyttorna'!O329/I5 -> 0 | J27: ='Räkna på nyttorna'!P329/J5 -> 0 | K27: ='Räkna på nyttorna'!Q329/K5 -> 0 | L27: =SUM(Nyttor[[#This Row],[År 1]:[År 6]]) -> 0 | M27: =NyttorMin[[#This Row],[Summa]] -> 0 | N27: =NyttorMax[[#This Row],[Summa]] -> 0 | O27: 0 | R27: 20 | S27: ='Räkna på nyttorna'!L330/S5 -> 0 | T27: ='Räkna på nyttorna'!M330/T5 -> 0 | U27: ='Räkna på nyttorna'!N330/U5 -> 0 | V27: ='Räkna på nyttorna'!O330/V5 -> 0 | W27: ='Räkna på nyttorna'!P330/W5 -> 0 | X27: ='Räkna på nyttorna'!Q330/X5 -> 0 | Y27: =SUM(NyttorMin[[#This Row],[År 1]:[År 6]]) -> 0 | AA27: 20 | AB27: ='Räkna på nyttorna'!L331/AB5 -> 0 | AC27: ='Räkna på nyttorna'!M331/AC5 -> 0 | AD27: ='Räkna på nyttorna'!N331/AD5 -> 0 | AE27: ='Räkna på nyttorna'!O331/AE5 -> 0 | AF27: ='Räkna på nyttorna'!P331/AF5 -> 0 | AG27: ='Räkna på nyttorna'!Q331/AG5 -> 0 | AH27: =SUM(NyttorMax[[#This Row],[År 1]:[År 6]]) -> 0
B28: 21 | C28: ='Räkna på nyttorna'!C346 -> 0 | D28: ='Räkna på nyttorna'!E346 -> 0 | E28: ='Räkna på nyttorna'!C348 -> 0 | F28: ='Räkna på nyttorna'!L346/F5 -> 0 | G28: ='Räkna på nyttorna'!M346/G5 -> 0 | H28: ='Räkna på nyttorna'!N346/H5 -> 0 | I28: ='Räkna på nyttorna'!O346/I5 -> 0 | J28: ='Räkna på nyttorna'!P346/J5 -> 0 | K28: ='Räkna på nyttorna'!Q346/K5 -> 0 | L28: =SUM(Nyttor[[#This Row],[År 1]:[År 6]]) -> 0 | M28: =NyttorMin[[#This Row],[Summa]] -> 0 | N28: =NyttorMax[[#This Row],[Summa]] -> 0 | O28: 0 | R28: 21 | S28: ='Räkna på nyttorna'!L347/S5 -> 0 | T28: ='Räkna på nyttorna'!M347/T5 -> 0 | U28: ='Räkna på nyttorna'!N347/U5 -> 0 | V28: ='Räkna på nyttorna'!O347/V5 -> 0 | W28: ='Räkna på nyttorna'!P347/W5 -> 0 | X28: ='Räkna på nyttorna'!Q347/X5 -> 0 | Y28: =SUM(NyttorMin[[#This Row],[År 1]:[År 6]]) -> 0 | AA28: 21 | AB28: ='Räkna på nyttorna'!L348/AB5 -> 0 | AC28: ='Räkna på nyttorna'!M348/AC5 -> 0 | AD28: ='Räkna på nyttorna'!N348/AD5 -> 0 | AE28: ='Räkna på nyttorna'!O348/AE5 -> 0 | AF28: ='Räkna på nyttorna'!P348/AF5 -> 0 | AG28: ='Räkna på nyttorna'!Q348/AG5 -> 0 | AH28: =SUM(NyttorMax[[#This Row],[År 1]:[År 6]]) -> 0
B29: Summa | F29: =SUBTOTAL(109,Nyttor[År 1]) -> 0 | G29: =SUBTOTAL(109,Nyttor[År 2]) -> 0 | H29: =SUBTOTAL(109,Nyttor[År 3]) -> 15,676,552 | I29: =SUBTOTAL(109,Nyttor[År 4]) -> 45,659,860 | J29: =SUBTOTAL(109,Nyttor[År 5]) -> 73,691,964 | K29: =SUBTOTAL(109,Nyttor[År 6]) -> 71,545,596 | L29: =SUM(Nyttor[Summa trolig]) -> 206,573,971 | M29: =SUM(Nyttor[Summa min]) -> 143,510,199 | N29: =SUM(Nyttor[Summa max]) -> 277,098,345 | O29: =SUM(Nyttor[Vägt medel]) -> 208,066,091 | R29: Summa | S29: =SUM(NyttorMin[År 1]) -> 0 | T29: =SUM(NyttorMin[År 2]) -> 0 | U29: =SUM(NyttorMin[År 3]) -> 10,890,748 | V29: =SUM(NyttorMin[År 4]) -> 31,720,625 | W29: =SUM(NyttorMin[År 5]) -> 51,194,971 | X29: =SUM(NyttorMin[År 6]) -> 49,703,855 | Y29: =SUM(NyttorMin[Summa]) -> 143,510,199 | AB29: =SUM(NyttorMax[År 1]) -> 0 | AC29: =SUM(NyttorMax[År 2]) -> 0 | AD29: =SUM(NyttorMax[År 3]) -> 21,300,596 | AE29: =SUM(NyttorMax[År 4]) -> 62,040,571 | AF29: =SUM(NyttorMax[År 5]) -> 98,310,292 | AG29: =SUM(NyttorMax[År 6]) -> 95,446,885 | AH29: =SUM(NyttorMax[Summa]) -> 277,098,345

Sheet Kostnader
B1: Kostnader
B2: =IF(Försättsblad!B6=0,"",Försättsblad!B6) -> Första linjens digitala vård - nya kanaler - bild och video
U4: Diskontering | V4: =(1+Diskonteringsränta)^0 -> 1.000 | W4: =(1+Diskonteringsränta)^1 -> 1.030 | X4: =(1+Diskonteringsränta)^2 -> 1.061 | Y4: =(1+Diskonteringsränta)^3 -> 1.093 | Z4: =(1+Diskonteringsränta)^4 -> 1.126 | AA4: =(1+Diskonteringsränta)^5 -> 1.159
F5: =Startår -> 2019 | G5: =F5+1 -> 2020 | H5: =G5+1 -> 2021 | I5: =H5+1 -> 2022 | J5: =I5+1 -> 2023 | K5: =J5+1 -> 2024 | V5: =Startår -> 2019 | W5: =V5+1 -> 2020 | X5: =W5+1 -> 2021 | Y5: 2022 | Z5: 2023 | AA5: 2024
B6: ID | C6: Kostnadskategori | D6: Kostnadens namn | E6: Intressent | F6: år 1 | G6: år 2 | H6: år 3 | I6: år 4 | J6: år 5 | K6: år 6 | L6: Summa trolig | M6: Summa min | N6: Summa max | O6: Vägt medel | P6: Osäkerhet | R6: ID | S6: Kostnadskategori | T6: Kostnadens namn | U6: Intressent | V6: år 1 | W6: år 2 | X6: år 3 | Y6: år 4 | Z6: år 5 | AA6: år 6 | AB6: Summa | AC6: Min | AD6: Max | AE6: Vägt medel | AF6: Osäkerhet
B7: 1 | C7: 2. Löpande verksamhetskostnader | D7: Bild - förvaltning 2021 | E7: Staten | F7: 0 | G7: 0 | H7: 7,000,000 | I7: 0 | J7: 0 | K7: 0 | L7: =SUM(F7:K7) -> 7,000,000 | M7: =0.8*Kostnader4[[#This Row],[Summa trolig]] -> 5,600,000 | N7: =1.2*Kostnader4[[#This Row],[Summa trolig]] -> 8,400,000 | O7: =IF(OR(ISBLANK(N7),ISBLANK(M7),ISBLANK(L7)),"",(N7+M7+3*L7)/5) -> 7,000,000 | P7: =IF(OR(ISBLANK(L7),L7=0),"",(N7-M7)/5/L7) -> 8% | R7: 1 | S7: =Kostnader4[[#This Row],[Kostnadskategori]] -> 2. Löpande verksamhetskostnader | T7: =Kostnader4[[#This Row],[Kostnadens namn]] -> Bild - förvaltning 2021 | U7: =Kostnader4[[#This Row],[Intressent ]] -> Staten | V7: =Kostnader4[[#This Row],[år 1]]/V$4 -> 0 | W7: =Kostnader4[[#This Row],[år 2]]/W$4 -> 0 | X7: =Kostnader4[[#This Row],[år 3]]/X$4 -> 6,598,171 | Y7: =Kostnader4[[#This Row],[år 4]]/Y$4 -> 0 | Z7: =Kostnader4[[#This Row],[år 5]]/Z$4 -> 0 | AA7: =Kostnader4[[#This Row],[år 6]]/AA$4 -> 0 | AB7: =SUM(V7:AA7) -> 6,598,171 | AC7: =0.8*Kostnader[[#This Row],[Summa]] -> 5,278,537 | AD7: =1.2*Kostnader[[#This Row],[Summa]] -> 7,917,806 | AE7: =IF(OR(ISBLANK(AD7),ISBLANK(AC7),ISBLANK(AB7)),"",(AD7+AC7+3*AB7)/5) -> 6,598,171 | AF7: =IF(OR(ISBLANK(AB7),AB7=0),"",(AD7-AC7)/5/AB7) -> 8%
B8: 2 | C8: 2. Löpande verksamhetskostnader | D8: Bild - förvaltning 2022 - 2024 | E8: Regioner | F8: 0 | G8: 0 | H8: 0 | I8: 5,500,000 | J8: 5,500,000 | K8: 5,500,000 | L8: 16,500,000 | M8: =0.8*Kostnader4[[#This Row],[Summa trolig]] -> 13,200,000 | N8: =1.2*Kostnader4[[#This Row],[Summa trolig]] -> 19,800,000 | O8: 16,500,000 | P8: 8% | R8: 2 | S8: =Kostnader4[[#This Row],[Kostnadskategori]] -> 2. Löpande verksamhetskostnader | T8: =Kostnader4[[#This Row],[Kostnadens namn]] -> Bild - förvaltning 2022 - 2024 | U8: =Kostnader4[[#This Row],[Intressent ]] -> Regioner | V8: =Kostnader4[[#This Row],[år 1]]/V$4 -> 0 | W8: =Kostnader4[[#This Row],[år 2]]/W$4 -> 0 | X8: =Kostnader4[[#This Row],[år 3]]/X$4 -> 0 | Y8: =Kostnader4[[#This Row],[år 4]]/Y$4 -> 5,033,279 | Z8: =Kostnader4[[#This Row],[år 5]]/Z$4 -> 4,886,679 | AA8: =Kostnader4[[#This Row],[år 6]]/AA$4 -> 4,744,348 | AB8: =SUM(V8:AA8) -> 14,664,306 | AC8: =0.8*Kostnader[[#This Row],[Summa]] -> 11,731,445 | AD8: =1.2*Kostnader[[#This Row],[Summa]] -> 17,597,167 | AE8: 14,664,306 | AF8: 8%
B9: 3 | C9: 1. Verksamhetsförändring | D9: Bild - införande 2021, tre regioner | E9: Regioner | H9: 35,000 | L9: 35,000 | M9: =0.8*Kostnader4[[#This Row],[Summa trolig]] -> 28,000 | N9: =1.2*Kostnader4[[#This Row],[Summa trolig]] -> 42,000 | O9: 35,000 | P9: 8% | R9: 3 | S9: =Kostnader4[[#This Row],[Kostnadskategori]] -> 1. Verksamhetsförändring | T9: =Kostnader4[[#This Row],[Kostnadens namn]] -> Bild - införande 2021, tre regioner | U9: =Kostnader4[[#This Row],[Intressent ]] -> Regioner | V9: =Kostnader4[[#This Row],[år 1]]/V$4 -> 0 | W9: =Kostnader4[[#This Row],[år 2]]/W$4 -> 0 | X9: =Kostnader4[[#This Row],[år 3]]/X$4 -> 32,991 | Y9: =Kostnader4[[#This Row],[år 4]]/Y$4 -> 0 | Z9: =Kostnader4[[#This Row],[år 5]]/Z$4 -> 0 | AA9: =Kostnader4[[#This Row],[år 6]]/AA$4 -> 0 | AB9: 32,991 | AC9: =0.8*Kostnader[[#This Row],[Summa]] -> 26,393 | AD9: =1.2*Kostnader[[#This Row],[Summa]] -> 39,589 | AE9: 32,991 | AF9: 8%
B10: 4 | C10: 4. Projekt | D10: Bild - pilotregionernas resurser i pilot 2019 | E10: Regioner | F10: 313,000 | L10: 313,000 | M10: =0.8*Kostnader4[[#This Row],[Summa trolig]] -> 250,400 | N10: =1.2*Kostnader4[[#This Row],[Summa trolig]] -> 375,600 | O10: 313,000 | P10: 8% | R10: 4 | S10: =Kostnader4[[#This Row],[Kostnadskategori]] -> 4. Projekt | T10: =Kostnader4[[#This Row],[Kostnadens namn]] -> Bild - pilotregionernas resurser i pilot 2019 | U10: =Kostnader4[[#This Row],[Intressent ]] -> Regioner | V10: =Kostnader4[[#This Row],[år 1]]/V$4 -> 313,000 | W10: =Kostnader4[[#This Row],[år 2]]/W$4 -> 0 | X10: =Kostnader4[[#This Row],[år 3]]/X$4 -> 0 | Y10: =Kostnader4[[#This Row],[år 4]]/Y$4 -> 0 | Z10: =Kostnader4[[#This Row],[år 5]]/Z$4 -> 0 | AA10: =Kostnader4[[#This Row],[år 6]]/AA$4 -> 0 | AB10: 313,000 | AC10: =0.8*Kostnader[[#This Row],[Summa]] -> 250,400 | AD10: =1.2*Kostnader[[#This Row],[Summa]] -> 375,600 | AE10: 313,000 | AF10: 8%
B11: 5 | C11: 4. Projekt | D11: Bild - utbildning 40 sjuksköterskor i pilot 2019 | E11: Regioner | F11: 108,000 | L11: 108,000 | M11: =0.8*Kostnader4[[#This Row],[Summa trolig]] -> 86,400 | N11: =1.2*Kostnader4[[#This Row],[Summa trolig]] -> 129,600 | O11: 108,000 | P11: 8% | R11: 5 | S11: =Kostnader4[[#This Row],[Kostnadskategori]] -> 4. Projekt | T11: =Kostnader4[[#This Row],[Kostnadens namn]] -> Bild - utbildning 40 sjuksköterskor i pilot 2019 | U11: =Kostnader4[[#This Row],[Intressent ]] -> Regioner | V11: =Kostnader4[[#This Row],[år 1]]/V$4 -> 108,000 | W11: =Kostnader4[[#This Row],[år 2]]/W$4 -> 0 | X11: =Kostnader4[[#This Row],[år 3]]/X$4 -> 0 | Y11: =Kostnader4[[#This Row],[år 4]]/Y$4 -> 0 | Z11: =Kostnader4[[#This Row],[år 5]]/Z$4 -> 0 | AA11: =Kostnader4[[#This Row],[år 6]]/AA$4 -> 0 | AB11: 108,000 | AC11: =0.8*Kostnader[[#This Row],[Summa]] -> 86,400 | AD11: =1.2*Kostnader[[#This Row],[Summa]] -> 129,600 | AE11: 108,000 | AF11: 8%
B12: 6 | C12: 2. Löpande verksamhetskostnader | D12: Bild - utbildning sjuksköterskor breddinförande | E12: Regioner | G12: =(L80+G87)/2 -> 1,459,200 | H12: =(L80+G87)/2 -> 1,459,200 | L12: 2,918,400 | M12: =0.8*Kostnader4[[#This Row],[Summa trolig]] -> 2,334,720 | N12: =1.2*Kostnader4[[#This Row],[Summa trolig]] -> 3,502,080 | O12: 2,918,400 | P12: 8% | R12: 6 | S12: =Kostnader4[[#This Row],[Kostnadskategori]] -> 2. Löpande verksamhetskostnader | T12: =Kostnader4[[#This Row],[Kostnadens namn]] -> Bild - utbildning sjuksköterskor breddinförande | U12: =Kostnader4[[#This Row],[Intressent ]] -> Regioner | V12: =Kostnader4[[#This Row],[år 1]]/V$4 -> 0 | W12: =Kostnader4[[#This Row],[år 2]]/W$4 -> 1,416,699 | X12: =Kostnader4[[#This Row],[år 3]]/X$4 -> 1,375,436 | Y12: =Kostnader4[[#This Row],[år 4]]/Y$4 -> 0 | Z12: =Kostnader4[[#This Row],[år 5]]/Z$4 -> 0 | AA12: =Kostnader4[[#This Row],[år 6]]/AA$4 -> 0 | AB12: 2,792,135 | AC12: =0.8*Kostnader[[#This Row],[Summa]] -> 2,233,708 | AD12: =1.2*Kostnader[[#This Row],[Summa]] -> 3,350,562 | AE12: 2,792,135 | AF12: 8%
B13: 7 | C13: 2. Löpande verksamhetskostnader | D13: Bild - årlig utbildning sjuksköterskor | E13: Regioner | I13: =G93 -> 152,000 | J13: =H93 -> 0 | K13: 0 | L13: 152,000 | M13: =0.8*Kostnader4[[#This Row],[Summa trolig]] -> 121,600 | N13: =1.2*Kostnader4[[#This Row],[Summa trolig]] -> 182,400 | O13: 152,000 | P13: 8% | R13: 7 | S13: =Kostnader4[[#This Row],[Kostnadskategori]] -> 2. Löpande verksamhetskostnader | T13: =Kostnader4[[#This Row],[Kostnadens namn]] -> Bild - årlig utbildning sjuksköterskor | U13: =Kostnader4[[#This Row],[Intressent ]] -> Regioner | V13: =Kostnader4[[#This Row],[år 1]]/V$4 -> 0 | W13: =Kostnader4[[#This Row],[år 2]]/W$4 -> 0 | X13: =Kostnader4[[#This Row],[år 3]]/X$4 -> 0 | Y13: =Kostnader4[[#This Row],[år 4]]/Y$4 -> 139,102 | Z13: =Kostnader4[[#This Row],[år 5]]/Z$4 -> 0 | AA13: =Kostnader4[[#This Row],[år 6]]/AA$4 -> 0 | AB13: 139,102 | AC13: =0.8*Kostnader[[#This Row],[Summa]] -> 111,281 | AD13: =1.2*Kostnader[[#This Row],[Summa]] -> 166,922 | AE13: 139,102 | AF13: 8%
B14: 8 | C14: 4. Projekt | D14: Projekt Inera - etapp 1 - utveckling av verktyg och piloter | E14: Inera | F14: 4,895,000 | L14: 4,895,000 | M14: =0.8*Kostnader4[[#This Row],[Summa trolig]] -> 3,916,000 | N14: =1.2*Kostnader4[[#This Row],[Summa trolig]] -> 5,874,000 | O14: 4,895,000 | P14: 8% | R14: 8 | S14: =Kostnader4[[#This Row],[Kostnadskategori]] -> 4. Projekt | T14: =Kostnader4[[#This Row],[Kostnadens namn]] -> Projekt Inera - etapp 1 - utveckling av verktyg och piloter | U14: =Kostnader4[[#This Row],[Intressent ]] -> Inera | V14: =Kostnader4[[#This Row],[år 1]]/V$4 -> 4,895,000 | W14: =Kostnader4[[#This Row],[år 2]]/W$4 -> 0 | X14: =Kostnader4[[#This Row],[år 3]]/X$4 -> 0 | Y14: =Kostnader4[[#This Row],[år 4]]/Y$4 -> 0 | Z14: =Kostnader4[[#This Row],[år 5]]/Z$4 -> 0 | AA14: =Kostnader4[[#This Row],[år 6]]/AA$4 -> 0 | AB14: 4,895,000 | AC14: =0.8*Kostnader[[#This Row],[Summa]] -> 3,916,000 | AD14: =1.2*Kostnader[[#This Row],[Summa]] -> 5,874,000 | AE14: 4,895,000 | AF14: 8%
B15: 9 | C15: 4. Projekt | D15: Projekt Inera - etapp 2 - breddinförande av bildverktyget | E15: Staten | G15: 7,000,000 | I15: 0 | J15: 0 | K15: 0 | L15: 7,000,000 | M15: =0.8*Kostnader4[[#This Row],[Summa trolig]] -> 5,600,000 | N15: =1.2*Kostnader4[[#This Row],[Summa trolig]] -> 8,400,000 | O15: 7,000,000 | P15: 8% | R15: 9 | S15: =Kostnader4[[#This Row],[Kostnadskategori]] -> 4. Projekt | T15: =Kostnader4[[#This Row],[Kostnadens namn]] -> Projekt Inera - etapp 2 - breddinförande av bildverktyget | U15: =Kostnader4[[#This Row],[Intressent ]] -> Staten | V15: =Kostnader4[[#This Row],[år 1]]/V$4 -> 0 | W15: =Kostnader4[[#This Row],[år 2]]/W$4 -> 6,796,117 | X15: =Kostnader4[[#This Row],[år 3]]/X$4 -> 0 | Y15: =Kostnader4[[#This Row],[år 4]]/Y$4 -> 0 | Z15: =Kostnader4[[#This Row],[år 5]]/Z$4 -> 0 | AA15: =Kostnader4[[#This Row],[år 6]]/AA$4 -> 0 | AB15: 6,796,117 | AC15: =0.8*Kostnader[[#This Row],[Summa]] -> 5,436,893 | AD15: =1.2*Kostnader[[#This Row],[Summa]] -> 8,155,340 | AE15: 6,796,117 | AF15: 8%
B16: 10 | C16: 1. Verksamhetsförändring | D16: Bild - ökad bemanning pga längre samtalstider | E16: Regioner | H16: =$D$51 -> 5,461,200 | I16: =$D$51 -> 5,461,200 | J16: 5,461,200 | K16: 5,461,200 | L16: 21,844,800 | M16: =0.8*Kostnader4[[#This Row],[Summa trolig]] -> 17,475,840 | N16: =1.2*Kostnader4[[#This Row],[Summa trolig]] -> 26,213,760 | O16: 21,844,800 | P16: 8% | R16: 10 | S16: =Kostnader4[[#This Row],[Kostnadskategori]] -> 1. Verksamhetsförändring | T16: =Kostnader4[[#This Row],[Kostnadens namn]] -> Bild - ökad bemanning pga längre samtalstider | U16: =Kostnader4[[#This Row],[Intressent ]] -> Regioner | V16: =Kostnader4[[#This Row],[år 1]]/V$4 -> 0 | W16: =Kostnader4[[#This Row],[år 2]]/W$4 -> 0 | X16: =Kostnader4[[#This Row],[år 3]]/X$4 -> 5,147,705 | Y16: =Kostnader4[[#This Row],[år 4]]/Y$4 -> 4,997,772 | Z16: =Kostnader4[[#This Row],[år 5]]/Z$4 -> 4,852,205 | AA16: =Kostnader4[[#This Row],[år 6]]/AA$4 -> 4,710,879 | AB16: 19,708,561 | AC16: =0.8*Kostnader[[#This Row],[Summa]] -> 15,766,849 | AD16: =1.2*Kostnader[[#This Row],[Summa]] -> 23,650,273 | AE16: 19,708,561 | AF16: 8%
B17: 11 | C17: 4. Projekt | D17: Projekt Inera - etapp 2 - förberedelse för video | E17: Staten | F17: 0 | G17: 2,000,000 | H17: 4,000,000 | I17: 0 | J17: 0 | K17: 0 | L17: 6,000,000 | M17: =0.8*Kostnader4[[#This Row],[Summa trolig]] -> 4,800,000 | N17: =1.2*Kostnader4[[#This Row],[Summa trolig]] -> 7,200,000 | O17: 6,000,000 | P17: 8% | R17: 11 | S17: =Kostnader4[[#This Row],[Kostnadskategori]] -> 4. Projekt | T17: =Kostnader4[[#This Row],[Kostnadens namn]] -> Projekt Inera - etapp 2 - förberedelse för video | U17: =Kostnader4[[#This Row],[Intressent ]] -> Staten | V17: =Kostnader4[[#This Row],[år 1]]/V$4 -> 0 | W17: =Kostnader4[[#This Row],[år 2]]/W$4 -> 1,941,748 | X17: =Kostnader4[[#This Row],[år 3]]/X$4 -> 3,770,384 | Y17: =Kostnader4[[#This Row],[år 4]]/Y$4 -> 0 | Z17: =Kostnader4[[#This Row],[år 5]]/Z$4 -> 0 | AA17: =Kostnader4[[#This Row],[år 6]]/AA$4 -> 0 | AB17: 5,712,131 | AC17: =0.8*Kostnader[[#This Row],[Summa]] -> 4,569,705 | AD17: =1.2*Kostnader[[#This Row],[Summa]] -> 6,854,557 | AE17: 5,712,131 | AF17: 8%
B18: 12 | C18: 2. Löpande verksamhetskostnader | D18: Video - förvaltning 2021 | E18: Staten | F18: 0 | G18: 0 | H18: 7,000,000 | I18: 0 | J18: 0 | K18: 0 | L18: 7,000,000 | M18: =0.8*Kostnader4[[#This Row],[Summa trolig]] -> 5,600,000 | N18: =1.2*Kostnader4[[#This Row],[Summa trolig]] -> 8,400,000 | O18: 7,000,000 | P18: 8% | R18: 12 | S18: =Kostnader4[[#This Row],[Kostnadskategori]] -> 2. Löpande verksamhetskostnader | T18: =Kostnader4[[#This Row],[Kostnadens namn]] -> Video - förvaltning 2021 | U18: =Kostnader4[[#This Row],[Intressent ]] -> Staten | V18: =Kostnader4[[#This Row],[år 1]]/V$4 -> 0 | W18: =Kostnader4[[#This Row],[år 2]]/W$4 -> 0 | X18: =Kostnader4[[#This Row],[år 3]]/X$4 -> 6,598,171 | Y18: =Kostnader4[[#This Row],[år 4]]/Y$4 -> 0 | Z18: =Kostnader4[[#This Row],[år 5]]/Z$4 -> 0 | AA18: =Kostnader4[[#This Row],[år 6]]/AA$4 -> 0 | AB18: 6,598,171 | AC18: =0.8*Kostnader[[#This Row],[Summa]] -> 5,278,537 | AD18: =1.2*Kostnader[[#This Row],[Summa]] -> 7,917,806 | AE18: 6,598,171 | AF18: 8%
B19: 13 | C19: 2. Löpande verksamhetskostnader | D19: Video - förvaltning 2022 - 2024 | E19: Regioner | F19: 0 | G19: 0 | H19: 0 | I19: 5,000,000 | J19: 5,000,000 | K19: 5,000,000 | L19: 15,000,000 | M19: =0.8*Kostnader4[[#This Row],[Summa trolig]] -> 12,000,000 | N19: =1.2*Kostnader4[[#This Row],[Summa trolig]] -> 18,000,000 | O19: 15,000,000 | P19: 8% | R19: 13 | S19: =Kostnader4[[#This Row],[Kostnadskategori]] -> 2. Löpande verksamhetskostnader | T19: =Kostnader4[[#This Row],[Kostnadens namn]] -> Video - förvaltning 2022 - 2024 | U19: =Kostnader4[[#This Row],[Intressent ]] -> Regioner | V19: =Kostnader4[[#This Row],[år 1]]/V$4 -> 0 | W19: =Kostnader4[[#This Row],[år 2]]/W$4 -> 0 | X19: =Kostnader4[[#This Row],[år 3]]/X$4 -> 0 | Y19: =Kostnader4[[#This Row],[år 4]]/Y$4 -> 4,575,708 | Z19: =Kostnader4[[#This Row],[år 5]]/Z$4 -> 4,442,435 | AA19: =Kostnader4[[#This Row],[år 6]]/AA$4 -> 4,313,044 | AB19: 13,331,187 | AC19: =0.8*Kostnader[[#This Row],[Summa]] -> 10,664,950 | AD19: =1.2*Kostnader[[#This Row],[Summa]] -> 15,997,425 | AE19: 13,331,187 | AF19: 8%
B20: 14 | C20: 1. Verksamhetsförändring | D20: Video - införande 20 regioner | E20: Regioner | H20: 350,000 | I20: 300,000 | L20: 650,000 | M20: =0.8*Kostnader4[[#This Row],[Summa trolig]] -> 520,000 | N20: =1.2*Kostnader4[[#This Row],[Summa trolig]] -> 780,000 | O20: 650,000 | P20: 8% | R20: 14 | S20: =Kostnader4[[#This Row],[Kostnadskategori]] -> 1. Verksamhetsförändring | T20: =Kostnader4[[#This Row],[Kostnadens namn]] -> Video - införande 20 regioner | U20: =Kostnader4[[#This Row],[Intressent ]] -> Regioner | V20: =Kostnader4[[#This Row],[år 1]]/V$4 -> 0 | W20: =Kostnader4[[#This Row],[år 2]]/W$4 -> 0 | X20: =Kostnader4[[#This Row],[år 3]]/X$4 -> 329,909 | Y20: =Kostnader4[[#This Row],[år 4]]/Y$4 -> 274,542 | Z20: =Kostnader4[[#This Row],[år 5]]/Z$4 -> 0 | AA20: =Kostnader4[[#This Row],[år 6]]/AA$4 -> 0 | AB20: 604,451 | AC20: =0.8*Kostnader[[#This Row],[Summa]] -> 483,561 | AD20: =1.2*Kostnader[[#This Row],[Summa]] -> 725,341 | AE20: 604,451 | AF20: 8%
B21: 15 | C21: 4. Projekt | D21: Video - pilotregionernas resurser i pilot 2019 | E21: Regioner | F21: 313,000 | L21: 313,000 | M21: =0.8*Kostnader4[[#This Row],[Summa trolig]] -> 250,400 | N21: =1.2*Kostnader4[[#This Row],[Summa trolig]] -> 375,600 | O21: 313,000 | P21: 8% | R21: 15 | S21: =Kostnader4[[#This Row],[Kostnadskategori]] -> 4. Projekt | T21: =Kostnader4[[#This Row],[Kostnadens namn]] -> Video - pilotregionernas resurser i pilot 2019 | U21: =Kostnader4[[#This Row],[Intressent ]] -> Regioner | V21: =Kostnader4[[#This Row],[år 1]]/V$4 -> 313,000 | W21: =Kostnader4[[#This Row],[år 2]]/W$4 -> 0 | X21: =Kostnader4[[#This Row],[år 3]]/X$4 -> 0 | Y21: =Kostnader4[[#This Row],[år 4]]/Y$4 -> 0 | Z21: =Kostnader4[[#This Row],[år 5]]/Z$4 -> 0 | AA21: =Kostnader4[[#This Row],[år 6]]/AA$4 -> 0 | AB21: 313,000 | AC21: =0.8*Kostnader[[#This Row],[Summa]] -> 250,400 | AD21: =1.2*Kostnader[[#This Row],[Summa]] -> 375,600 | AE21: 313,000 | AF21: 8%
B22: 16 | C22: 4. Projekt | D22: Video - utbildning 40 sjuksköterskor i pilot 2019 | E22: Regioner | F22: 108,000 | L22: 108,000 | M22: =0.8*Kostnader4[[#This Row],[Summa trolig]] -> 86,400 | N22: =1.2*Kostnader4[[#This Row],[Summa trolig]] -> 129,600 | O22: 108,000 | P22: 8% | R22: 16 | S22: =Kostnader4[[#This Row],[Kostnadskategori]] -> 4. Projekt | T22: =Kostnader4[[#This Row],[Kostnadens namn]] -> Video - utbildning 40 sjuksköterskor i pilot 2019 | U22: =Kostnader4[[#This Row],[Intressent ]] -> Regioner | V22: =Kostnader4[[#This Row],[år 1]]/V$4 -> 108,000 | W22: =Kostnader4[[#This Row],[år 2]]/W$4 -> 0 | X22: =Kostnader4[[#This Row],[år 3]]/X$4 -> 0 | Y22: =Kostnader4[[#This Row],[år 4]]/Y$4 -> 0 | Z22: =Kostnader4[[#This Row],[år 5]]/Z$4 -> 0 | AA22: =Kostnader4[[#This Row],[år 6]]/AA$4 -> 0 | AB22: 108,000 | AC22: =0.8*Kostnader[[#This Row],[Summa]] -> 86,400 | AD22: =1.2*Kostnader[[#This Row],[Summa]] -> 129,600 | AE22: 108,000 | AF22: 8%
B23: 17 | C23: 2. Löpande verksamhetskostnader | D23: Video - utbildning sjuksköterskor breddinförande | E23: Regioner | H23: =(L81+G88) -> 2,723,840 | L23: 2,723,840 | M23: =0.8*Kostnader4[[#This Row],[Summa trolig]] -> 2,179,072 | N23: =1.2*Kostnader4[[#This Row],[Summa trolig]] -> 3,268,608 | O23: 2,723,840 | P23: 8% | R23: 17 | S23: =Kostnader4[[#This Row],[Kostnadskategori]] -> 2. Löpande verksamhetskostnader | T23: =Kostnader4[[#This Row],[Kostnadens namn]] -> Video - utbildning sjuksköterskor breddinförande | U23: =Kostnader4[[#This Row],[Intressent ]] -> Regioner | V23: =Kostnader4[[#This Row],[år 1]]/V$4 -> 0 | W23: =Kostnader4[[#This Row],[år 2]]/W$4 -> 0 | X23: =Kostnader4[[#This Row],[år 3]]/X$4 -> 2,567,480 | Y23: =Kostnader4[[#This Row],[år 4]]/Y$4 -> 0 | Z23: =Kostnader4[[#This Row],[år 5]]/Z$4 -> 0 | AA23: =Kostnader4[[#This Row],[år 6]]/AA$4 -> 0 | AB23: 2,567,480 | AC23: =0.8*Kostnader[[#This Row],[Summa]] -> 2,053,984 | AD23: =1.2*Kostnader[[#This Row],[Summa]] -> 3,080,977 | AE23: 2,567,480 | AF23: 8%
B24: 18 | C24: 2. Löpande verksamhetskostnader | D24: Video - årlig utbildning sjuksköterskor | E24: Regioner | I24: =$G$94 -> 152,000 | J24: =$G$94 -> 152,000 | K24: 152,000 | L24: 456,000 | M24: =0.8*Kostnader4[[#This Row],[Summa trolig]] -> 364,800 | N24: =1.2*Kostnader4[[#This Row],[Summa trolig]] -> 547,200 | O24: 456,000 | P24: 8% | R24: 18 | S24: =Kostnader4[[#This Row],[Kostnadskategori]] -> 2. Löpande verksamhetskostnader | T24: =Kostnader4[[#This Row],[Kostnadens namn]] -> Video - årlig utbildning sjuksköterskor | U24: =Kostnader4[[#This Row],[Intressent ]] -> Regioner | V24: =Kostnader4[[#This Row],[år 1]]/V$4 -> 0 | W24: =Kostnader4[[#This Row],[år 2]]/W$4 -> 0 | X24: =Kostnader4[[#This Row],[år 3]]/X$4 -> 0 | Y24: =Kostnader4[[#This Row],[år 4]]/Y$4 -> 139,102 | Z24: =Kostnader4[[#This Row],[år 5]]/Z$4 -> 135,050 | AA24: =Kostnader4[[#This Row],[år 6]]/AA$4 -> 131,117 | AB24: 405,268 | AC24: =0.8*Kostnader[[#This Row],[Summa]] -> 324,214 | AD24: =1.2*Kostnader[[#This Row],[Summa]] -> 486,322 | AE24: 405,268 | AF24: 8%
B25: 19 | C25: 2. Löpande verksamhetskostnader | D25: Video - ökad bemanning pga längre samtalstider | E25: Regioner | H25: =$D$74/2 -> 2,730,600 | I25: =$D$74 -> 5,461,200 | J25: 5,461,200 | K25: 5,461,200 | L25: =SUM(F25:K25) -> 19,114,200 | M25: =0.8*Kostnader4[[#This Row],[Summa trolig]] -> 15,291,360 | N25: =1.2*Kostnader4[[#This Row],[Summa trolig]] -> 22,937,040 | O25: =IF(OR(ISBLANK(N25),ISBLANK(M25),ISBLANK(L25)),"",(N25+M25+3*L25)/5) -> 19,114,200 | P25: =IF(OR(ISBLANK(L25),L25=0),"",(N25-M25)/5/L25) -> 8% | R25: 19 | S25: =Kostnader4[[#This Row],[Kostnadskategori]] -> 2. Löpande verksamhetskostnader | T25: =Kostnader4[[#This Row],[Kostnadens namn]] -> Video - ökad bemanning pga längre samtalstider | U25: =Kostnader4[[#This Row],[Intressent ]] -> Regioner | V25: =Kostnader4[[#This Row],[år 1]]/V$4 -> 0 | W25: =Kostnader4[[#This Row],[år 2]]/W$4 -> 0 | X25: =Kostnader4[[#This Row],[år 3]]/X$4 -> 2,573,852 | Y25: =Kostnader4[[#This Row],[år 4]]/Y$4 -> 4,997,772 | Z25: =Kostnader4[[#This Row],[år 5]]/Z$4 -> 4,852,205 | AA25: =Kostnader4[[#This Row],[år 6]]/AA$4 -> 4,710,879 | AB25: 17,134,709 | AC25: =0.8*Kostnader[[#This Row],[Summa]] -> 13,707,767 | AD25: =1.2*Kostnader[[#This Row],[Summa]] -> 20,561,650 | AE25: 17,134,709 | AF25: 8%
B26: 20 | L26: =SUM(F25:K25) -> 19,114,200 | M26: =0.8*Kostnader4[[#This Row],[Summa trolig]] -> 15,291,360 | N26: =1.2*Kostnader4[[#This Row],[Summa trolig]] -> 22,937,040 | O26: 19,114,200 | P26: 8% | R26: 20 | S26: =Kostnader4[[#This Row],[Kostnadskategori]] -> 0 | T26: =Kostnader4[[#This Row],[Kostnadens namn]] -> 0 | U26: =Kostnader4[[#This Row],[Intressent ]] -> 0 | V26: =Kostnader4[[#This Row],[år 1]]/V$4 -> 0 | W26: =Kostnader4[[#This Row],[år 2]]/W$4 -> 0 | X26: =Kostnader4[[#This Row],[år 3]]/X$4 -> 0 | Y26: =Kostnader4[[#This Row],[år 4]]/Y$4 -> 0 | Z26: =Kostnader4[[#This Row],[år 5]]/Z$4 -> 0 | AA26: =Kostnader4[[#This Row],[år 6]]/AA$4 -> 0 | AB26: 0 | AC26: =0.8*Kostnader[[#This Row],[Summa]] -> 0 | AD26: =1.2*Kostnader[[#This Row],[Summa]] -> 0 | AE26: 0
B27: 21 | L27: 0 | M27: =0.8*Kostnader4[[#This Row],[Summa trolig]] -> 0 | N27: =1.2*Kostnader4[[#This Row],[Summa trolig]] -> 0 | O27: 0 | R27: 21 | S27: =Kostnader4[[#This Row],[Kostnadskategori]] -> 0 | T27: =Kostnader4[[#This Row],[Kostnadens namn]] -> 0 | U27: =Kostnader4[[#This Row],[Intressent ]] -> 0 | V27: =Kostnader4[[#This Row],[år 1]]/V$4 -> 0 | W27: =Kostnader4[[#This Row],[år 2]]/W$4 -> 0 | X27: =Kostnader4[[#This Row],[år 3]]/X$4 -> 0 | Y27: =Kostnader4[[#This Row],[år 4]]/Y$4 -> 0 | Z27: =Kostnader4[[#This Row],[år 5]]/Z$4 -> 0 | AA27: =Kostnader4[[#This Row],[år 6]]/AA$4 -> 0 | AB27: 0 | AC27: =0.8*Kostnader[[#This Row],[Summa]] -> 0 | AD27: =1.2*Kostnader[[#This Row],[Summa]] -> 0 | AE27: 0
B28: Summa | F28: =SUBTOTAL(109,Kostnader4[år 1]) -> 5,737,000 | G28: =SUBTOTAL(109,Kostnader4[år 2]) -> 10,459,200 | H28: =SUBTOTAL(109,Kostnader4[år 3]) -> 30,759,840 | I28: =SUBTOTAL(109,Kostnader4[år 4]) -> 22,026,400 | J28: =SUBTOTAL(109,Kostnader4[år 5]) -> 21,574,400 | K28: =SUBTOTAL(109,Kostnader4[år 6]) -> 21,574,400 | L28: =SUM(Kostnader4[Summa trolig]) -> 131,245,440 | M28: =SUM(Kostnader4[Summa min]) -> 104,996,352 | N28: =SUM(Kostnader4[Summa max]) -> 157,494,528 | O28: =SUM(Kostnader4[Vägt medel]) -> 131,245,440 | R28: Summa | V28: =SUM(Kostnader[år 1]) -> 5,737,000 | W28: =SUM(Kostnader[år 2]) -> 10,154,563 | X28: =SUM(Kostnader[år 3]) -> 28,994,099 | Y28: =SUM(Kostnader[år 4]) -> 20,157,276 | Z28: =SUM(Kostnader[år 5]) -> 19,168,575 | AA28: =SUM(Kostnader[år 6]) -> 18,610,267 | AB28: =SUM(Kostnader[Summa]) -> 102,821,781 | AC28: =SUM(Kostnader[Min]) -> 82,257,425 | AD28: =SUM(Kostnader[Max]) -> 123,386,137 | AE28: =SUM(Kostnader[Vägt medel]) -> 102,821,781
C30: Beräkning av ökat personalbehov - bild
C33: Ärendetider
D34: Antal samtal | E34: Medelärendetid
C35: Invånarsamtal utan bild (hämtas från "räkna på nyttorna") | D35: ='Räkna på nyttorna'!F6-D36 -> 2,537,394 | E35: 8.0
C36: Invånarsamtal med bild (hämtas från "räkna på nyttorna") | D36: ='Räkna på nyttorna'!F8 -> 190,987 | E36: 19.0
C37: Medelärendetid för alla samtal när bild används i verksamheten | E37: =((E35*D35)+(E36*D36))/(D35+D36) -> 8.8
D39: Antaganden i Erlang C
D40: Samtal per timme för de 16 regioner som planerar att införa video | E40: 480
D41: 75 % ska besvaras inom 15 minuter (900 sek)
D42: Medelärendetid med bild | E42: =E37 -> 8.8
D43: Medelärendetid utan bild | E43: =E35 -> 8.0
D45: Medelärendetid i sek
C46: Antal sjuksköterskor som behövs per timme | D46: =E37*60 -> 526 | E46: 118
C47: Antal sjuksköterskor som behövs per timme | D47: =8*60 -> 480 | E47: 109
C48: Antal extra sjuksköterskor som behövs per timme | E48: =E46-E47 -> 9
C50: Årskostnad för sjuksköterska | D50: 606,800
C51: Årskostnad för alla extra sjuksköterskor som behövs | D51: =D50*E48 -> 5,461,200
C54: Beräkning av ökat personalbehov - video
C57: Ärendetider
D58: Antal samtal | E58: Medelärendetid
C59: Invånarsamtal utan video (hämtas från "räkna på nyttorna") | D59: ='Räkna på nyttorna'!F57-D60 -> 2,261,553 | E59: 8.0
C60: Invånarsamtal med video (hämtas från "räkna på nyttorna") | D60: ='Räkna på nyttorna'!F59 -> 170,224 | E60: 18.0
C61: Medelärendetid för alla samtal när video används i verksamheten | E61: =((E59*D59)+(E60*D60))/(D59+D60) -> 8.7
D63: Antaganden i Erlang C
D64: Samtal per timme för de 16 regioner som planerar att införa video | E64: 431
D65: 75 % ska besvaras inom 15 minuter (900 sek)
D66: Medelärendetid när vissa samtal sker med video | E66: =E61 -> 8.7
D67: Medelärendetid utan video | E67: =E59 -> 8.0
C69: Antal sjuksköterskor som behövs per timme | D69: =E61*60 -> 522.0 | E69: 106
C70: Antal sjuksköterskor som behövs per | D70: 480 | E70: 97
C71: Antal extra sjuksköterskor som behövs per timme | E71: =E69-E70 -> 9
C73: Årskostnad för sjuksköterska | D73: 606,800
C74: Årskostnad för alla extra sjuksköterskor som behövs | D74: =D73*E71 -> 5,461,200
C77: Beräkningen för utbildning:
C78: Först utbildas 2 sjuksköterskor per region i 2 heldagar. För VGR är det istället 10.
D79: Regioner | E79: Ssk per region | F79: Summa ssk | G79: Plus 10 ssk från VGR | H79: Total summa ssk | I79: Antal timmar | J79: Totalt antal timmar | K79: Pris per timme | L79: Kostnad
C80: Bild | D80: 18 | E80: 2 | F80: =E80*D80 -> 36 | G80: 10 | H80: =G80+F80 -> 46 | I80: 16 | J80: =I80*H80 -> 736 | K80: 380 | L80: =K80*J80 -> 279,680
C81: Video | D81: 15 | E81: 2 | F81: =E81*D81 -> 30 | G81: 10 | H81: =G81+F81 -> 40 | I81: 16 | J81: =I81*H81 -> 640 | K81: 380 | L81: =K81*J81 -> 243,200
C85: Sedan utbildar de övriga sjuksköterskor i 1 heldag. Vi antar att alla utbildas. Vi räknar bara med de regioner som planerar att införa tjänsten:
D86: Antal som ska utbildas (baseras på unika användare i RGS för regionerna) | E86: Antal timmar | F86: Timpris | G86: Kostnad
C87: Bild - 19 regioner | D87: 868 | E87: 8 | F87: 380 | G87: =D87*E87*F87 -> 2,638,720
C88: Video - 16 regioner | D88: 816 | E88: 8 | F88: 380 | G88: =D88*E88*F88 -> 2,480,640
C91: Och sedan utbildas 50 nya per år (antagande om personalomsättning)
D92: Antal som ska utbildas | E92: Antal timmar | F92: Timpris | G92: Kostnad
C93: Bild | D93: 50 | E93: 8 | F93: 380 | G93: =D93*E93*F93 -> 152,000
C94: Video | D94: 50 | E94: 8 | F94: 380 | G94: =D94*E94*F94 -> 152,000

Sheet Nyttokalkyl
C1: Nyttokalkyl
C2: =IF(Försättsblad!B6=0,"",Försättsblad!B6) -> Första linjens digitala vård - nya kanaler - bild och video
C3: Tabellerna och diagrammen är formaterade för att passa i powerpoint-presentationer.
C4: Markera och kopiera tabellen eller diagrammet och välj att "klistra in som bild" för ett snyggt resultat.
C6: Total nytta
C9: Nyttorealiseringskalkyl - total nytta | H9: Nyttorealiseringskalkyl - total nytta
C10: För perioden | D10: =Startår & " - " & Startår+5 -> 2019 - 2024
I11: =Startår -> 2019 | J11: =I11+1 -> 2020 | K11: =J11+1 -> 2021 | L11: 2022 | M11: =L11+1 -> 2023 | N11: =M11+1 -> 2024 | O11: Totalt
C12: Total kostnad | D12: =TotalKostnad -> -102,821,781 kr | H12: Total nytta | I12: =I13+I14 -> 0 | J12: =J13+J14 -> 0 | K12: 15,676,552 | L12: 45,659,860 | M12: 73,691,964 | N12: 71,545,596 | O12: 206,573,971
C13: Finansiell nytta | D13: =O13 -> 18,674,111 kr | H13: Finansiella nyttor | I13: =IFERROR(GETPIVOTDATA("Summa av år 1",'-Admin-'!$C$25,"Nyttokategori","1. Finansiell"),0) -> 0 | J13: =IFERROR(GETPIVOTDATA("Summa av år 2",'-Admin-'!$C$25,"Nyttokategori","1. Finansiell"),0) -> 0 | K13: =IFERROR(GETPIVOTDATA("Summa av år 3",'-Admin-'!$C$25,"Nyttokategori","1. Finansiell"),0) -> 1,417,147 | L13: =IFERROR(GETPIVOTDATA("Summa av år 4",'-Admin-'!$C$25,"Nyttokategori","1. Finansiell"),0) -> 4,127,612 | M13: =IFERROR(GETPIVOTDATA("Summa av år 5",'-Admin-'!$C$25,"Nyttokategori","1. Finansiell"),0) -> 6,661,691 | N13: =IFERROR(GETPIVOTDATA("Summa av år 6",'-Admin-'!$C$25,"Nyttokategori","1. Finansiell"),0) -> 6,467,661 | O13: =SUM(I13:N13) -> 18,674,111
C14: Omfördelningsnytta | D14: =O14 -> 187,899,860 kr | H14: Omfördelningsnyttor | I14: =IFERROR(GETPIVOTDATA("Summa av år 1",'-Admin-'!$C$25,"Nyttokategori","2. Omfördelningsnytta"),0) -> 0 | J14: =IFERROR(GETPIVOTDATA("Summa av år 2",'-Admin-'!$C$25,"Nyttokategori","2. Omfördelningsnytta"),0) -> 0 | K14: =IFERROR(GETPIVOTDATA("Summa av år 3",'-Admin-'!$C$25,"Nyttokategori","2. Omfördelningsnytta"),0) -> 14,259,405 | L14: =IFERROR(GETPIVOTDATA("Summa av år 4",'-Admin-'!$C$25,"Nyttokategori","2. Omfördelningsnytta"),0) -> 41,532,247 | M14: =IFERROR(GETPIVOTDATA("Summa av år 5",'-Admin-'!$C$25,"Nyttokategori","2. Omfördelningsnytta"),0) -> 67,030,273 | N14: =IFERROR(GETPIVOTDATA("Summa av år 6",'-Admin-'!$C$25,"Nyttokategori","2. Omfördelningsnytta"),0) -> 65,077,935 | O14: =SUM(I14:N14) -> 187,899,860
C15: Total nytta | D15: =TotalNytta -> 206,573,971 kr
C16: Total nettonytta | D16: =NettoNytta -> 103,752,190 kr | H16: Total kostnad | I16: =SUM(I17:I20) -> -5,737,000 | J16: =SUM(J17:J20) -> -10,154,563 | K16: -28,994,099 | L16: -20,157,276 | M16: -19,168,575 | N16: -18,610,267 | O16: -102,821,781
H17: Verksamhets-förändring | I17: =IFERROR(-GETPIVOTDATA("Summa av År 1",'-Admin-'!$C$32,"Kostnadskategori","1. Verksamhetsförändring"),0) -> 0 | J17: =IFERROR(-GETPIVOTDATA("Summa av År 2",'-Admin-'!$C$32,"Kostnadskategori","1. Verksamhetsförändring"),0) -> 0 | K17: =IFERROR(-GETPIVOTDATA("Summa av År 3",'-Admin-'!$C$32,"Kostnadskategori","1. Verksamhetsförändring"),0) -> -5,510,604 | L17: =IFERROR(-GETPIVOTDATA("Summa av År 4",'-Admin-'!$C$32,"Kostnadskategori","1. Verksamhetsförändring"),0) -> -5,272,314 | M17: =IFERROR(-GETPIVOTDATA("Summa av År 5",'-Admin-'!$C$32,"Kostnadskategori","1. Verksamhetsförändring"),0) -> -4,852,205 | N17: =IFERROR(-GETPIVOTDATA("Summa av År 6",'-Admin-'!$C$32,"Kostnadskategori","1. Verksamhetsförändring"),0) -> -4,710,879 | O17: =SUM(I17:N17) -> -20,346,003
C18: Return on investment (ROI) | D18: =IF(-TotalKostnad=0,0,TotalNettoNytta/-TotalKostnad) -> 1.01 kr | H18: Löpande verksamhets-kostnader | I18: =IFERROR(-GETPIVOTDATA("Summa av År 1",'-Admin-'!$C$32,"Kostnadskategori","2. Löpande verksamhetskostnader"),0) -> 0 | J18: =IFERROR(-GETPIVOTDATA("Summa av År 2",'-Admin-'!$C$32,"Kostnadskategori","2. Löpande verksamhetskostnader"),0) -> -1,416,699 | K18: =IFERROR(-GETPIVOTDATA("Summa av År 3",'-Admin-'!$C$32,"Kostnadskategori","2. Löpande verksamhetskostnader"),0) -> -19,713,112 | L18: =IFERROR(-GETPIVOTDATA("Summa av År 4",'-Admin-'!$C$32,"Kostnadskategori","2. Löpande verksamhetskostnader"),0) -> -14,884,962 | M18: =IFERROR(-GETPIVOTDATA("Summa av År 5",'-Admin-'!$C$32,"Kostnadskategori","2. Löpande verksamhetskostnader"),0) -> -14,316,370 | N18: =IFERROR(-GETPIVOTDATA("Summa av År 6",'-Admin-'!$C$32,"Kostnadskategori","2. Löpande verksamhetskostnader"),0) -> -13,899,388 | O18: =SUM(I18:N18) -> -64,230,530
C19: Payback-år | D19: =IF('-Admin-'!D103=0,"Ingen payback",'-Admin-'!D103) -> 2023 | H19: Investeringar | I19: =IFERROR(-GETPIVOTDATA("Summa av År 1",'-Admin-'!$C$32,"Kostnadskategori","3. Investeringar"),0) -> 0 | J19: =IFERROR(-GETPIVOTDATA("Summa av År 2",'-Admin-'!$C$32,"Kostnadskategori","3. Investeringar"),0) -> 0 | K19: =IFERROR(-GETPIVOTDATA("Summa av År 3",'-Admin-'!$C$32,"Kostnadskategori","3. Investeringar"),0) -> 0 | L19: =IFERROR(-GETPIVOTDATA("Summa av År 4",'-Admin-'!$C$32,"Kostnadskategori","3. Investeringar"),0) -> 0 | M19: =IFERROR(-GETPIVOTDATA("Summa av År 5",'-Admin-'!$C$32,"Kostnadskategori","3. Investeringar"),0) -> 0 | N19: =IFERROR(-GETPIVOTDATA("Summa av År 6",'-Admin-'!$C$32,"Kostnadskategori","3. Investeringar"),0) -> 0 | O19: =SUM(I19:N19) -> 0
H20: Projekt | I20: =IFERROR(-GETPIVOTDATA("Summa av År 1",'-Admin-'!$C$32,"Kostnadskategori","4. Projekt"),0) -> -5,737,000 | J20: =IFERROR(-GETPIVOTDATA("Summa av År 2",'-Admin-'!$C$32,"Kostnadskategori","4. Projekt"),0) -> -8,737,864 | K20: =IFERROR(-GETPIVOTDATA("Summa av År 3",'-Admin-'!$C$32,"Kostnadskategori","4. Projekt"),0) -> -3,770,384 | L20: =IFERROR(-GETPIVOTDATA("Summa av År 4",'-Admin-'!$C$32,"Kostnadskategori","4. Projekt"),0) -> 0 | M20: =IFERROR(-GETPIVOTDATA("Summa av År 5",'-Admin-'!$C$32,"Kostnadskategori","4. Projekt"),0) -> 0 | N20: =IFERROR(-GETPIVOTDATA("Summa av År 6",'-Admin-'!$C$32,"Kostnadskategori","4. Projekt"),0) -> 0 | O20: -18,245,248
C21: Return on investment (ROI) är intjänad värderad nytta per investerad krona. Payback-år är året då de värderade nyttorna förväntas överstiga kostnaderna.
H22: Finansiell nettonytta | I22: =I13+I16 -> -5,737,000 | J22: =J13+J16 -> -10,154,563 | K22: -27,576,952 | L22: -16,029,664 | M22: -12,506,884 | N22: -12,142,606 | O22: =O13+O16 -> -84,147,670
H23: Ackumulerad finansiell nettonytta | I23: =I14+I16 -> -5,737,000 | J23: =IF(J22=0,I23,I23+J22) -> -15,891,563 | K23: =IF(K22=0,J23,J23+K22) -> -43,468,516 | L23: =IF(L22=0,K23,K23+L22) -> -59,498,179 | M23: =IF(M22=0,L23,L23+M22) -> -72,005,064 | N23: =IF(N22=0,M23,M23+N22) -> -84,147,670 | O23: =N23 -> -84,147,670
H24: Omfördelnings-nettonytta | I24: =I14+I16 -> -5,737,000 | J24: =J14+J16 -> -10,154,563 | K24: -14,734,694 | L24: 21,374,971 | M24: 47,861,698 | N24: 46,467,668 | O24: =O14+O16 -> 85,078,079
H25: Ackumulerad omfördelnings-nettonytta | I25: =I26 -> -5,737,000 | J25: =IF(J24=0,I25,I25+J24) -> -15,891,563 | K25: =IF(K24=0,J25,J25+K24) -> -30,626,258 | L25: =IF(L24=0,K25,K25+L24) -> -9,251,287 | M25: =IF(M24=0,L25,L25+M24) -> 38,610,411 | N25: =IF(N24=0,M25,M25+N24) -> 85,078,079 | O25: =N25 -> 85,078,079
H26: Nettonytta | I26: =I12+I16 -> -5,737,000 | J26: =J12+J16 -> -10,154,563 | K26: -13,317,548 | L26: =L12+L16 -> 25,502,583 | M26: =M12+M16 -> 54,523,389 | N26: 52,935,329 | O26: =O12+O16 -> 103,752,190
H27: Ackumulerad nettonytta | I27: =I26 -> -5,737,000 | J27: =IF(J26=0,I27,I27+J26) -> -15,891,563 | K27: =IF(K26=0,J27,J27+K26) -> -29,209,111 | L27: =IF(L26=0,K27,K27+L26) -> -3,706,527 | M27: =IF(M26=0,L27,L27+M26) -> 50,816,861 | N27: =IF(N26=0,M27,M27+N26) -> 103,752,190 | O27: =N27 -> 103,752,190
C57: Finansiell nytta
C60: Nyttorealiseringskalkyl - finansiel nytta | H60: Nyttorealiseringskalkyl - finansiell nytta
C61: För perioden | D61: =Startår & " - " & Startår+5 -> 2019 - 2024
I62: =Startår -> 2019 | J62: =I62+1 -> 2020 | K62: =J62+1 -> 2021 | L62: =K62+1 -> 2022 | M62: =L62+1 -> 2023 | N62: =M62+1 -> 2024 | O62: Totalt
C63: Total kostnad | D63: =TotalKostnad -> -102,821,781 kr | H63: Finansiella nyttor | I63: =IFERROR(GETPIVOTDATA("Summa av år 1",'-Admin-'!$C$25,"Nyttokategori","1. Finansiell"),0) -> 0 | J63: =IFERROR(GETPIVOTDATA("Summa av år 2",'-Admin-'!$C$25,"Nyttokategori","1. Finansiell"),0) -> 0 | K63: =IFERROR(GETPIVOTDATA("Summa av år 3",'-Admin-'!$C$25,"Nyttokategori","1. Finansiell"),0) -> 1,417,147 | L63: =IFERROR(GETPIVOTDATA("Summa av år 4",'-Admin-'!$C$25,"Nyttokategori","1. Finansiell"),0) -> 4,127,612 | M63: =IFERROR(GETPIVOTDATA("Summa av år 5",'-Admin-'!$C$25,"Nyttokategori","1. Finansiell"),0) -> 6,661,691 | N63: =IFERROR(GETPIVOTDATA("Summa av år 6",'-Admin-'!$C$25,"Nyttokategori","1. Finansiell"),0) -> 6,467,661 | O63: =SUM(I63:N63) -> 18,674,111
C64: Total finansiell nytta | D64: =O63 -> 18,674,111 kr
C65: Finansiell nettonytta | D65: =O71 -> -84,147,670 kr | H65: Total kostnad | I65: =SUM(I66:I69) -> -5,737,000 | J65: =SUM(J66:J69) -> -10,154,563 | K65: -28,994,099 | L65: -20,157,276 | M65: -19,168,575 | N65: -18,610,267 | O65: -102,821,781
H66: Verksamhets-förändring | I66: =IFERROR(-GETPIVOTDATA("Summa av År 1",'-Admin-'!$C$32,"Kostnadskategori","1. Verksamhetsförändring"),0) -> 0 | J66: =IFERROR(-GETPIVOTDATA("Summa av År 2",'-Admin-'!$C$32,"Kostnadskategori","1. Verksamhetsförändring"),0) -> 0 | K66: =IFERROR(-GETPIVOTDATA("Summa av År 3",'-Admin-'!$C$32,"Kostnadskategori","1. Verksamhetsförändring"),0) -> -5,510,604 | L66: =IFERROR(-GETPIVOTDATA("Summa av År 4",'-Admin-'!$C$32,"Kostnadskategori","1. Verksamhetsförändring"),0) -> -5,272,314 | M66: =IFERROR(-GETPIVOTDATA("Summa av År 5",'-Admin-'!$C$32,"Kostnadskategori","1. Verksamhetsförändring"),0) -> -4,852,205 | N66: =IFERROR(-GETPIVOTDATA("Summa av År 6",'-Admin-'!$C$32,"Kostnadskategori","1. Verksamhetsförändring"),0) -> -4,710,879 | O66: =SUM(I66:N66) -> -20,346,003
C67: Return on investment (ROI) | D67: =IF(-O65=0,0,O71/-O65) -> -0.82 kr | H67: Löpande verksamhets-kostnader | I67: =IFERROR(-GETPIVOTDATA("Summa av År 1",'-Admin-'!$C$32,"Kostnadskategori","2. Löpande verksamhetskostnader"),0) -> 0 | J67: =IFERROR(-GETPIVOTDATA("Summa av År 2",'-Admin-'!$C$32,"Kostnadskategori","2. Löpande verksamhetskostnader"),0) -> -1,416,699 | K67: =IFERROR(-GETPIVOTDATA("Summa av År 3",'-Admin-'!$C$32,"Kostnadskategori","2. Löpande verksamhetskostnader"),0) -> -19,713,112 | L67: =IFERROR(-GETPIVOTDATA("Summa av År 4",'-Admin-'!$C$32,"Kostnadskategori","2. Löpande verksamhetskostnader"),0) -> -14,884,962 | M67: =IFERROR(-GETPIVOTDATA("Summa av År 5",'-Admin-'!$C$32,"Kostnadskategori","2. Löpande verksamhetskostnader"),0) -> -14,316,370 | N67: =IFERROR(-GETPIVOTDATA("Summa av År 6",'-Admin-'!$C$32,"Kostnadskategori","2. Löpande verksamhetskostnader"),0) -> -13,899,388 | O67: =SUM(I67:N67) -> -64,230,530
C68: Payback-år | D68: ='-Admin-'!D112 -> Ingen payback | H68: Investeringar | I68: =IFERROR(-GETPIVOTDATA("Summa av År 1",'-Admin-'!$C$32,"Kostnadskategori","3. Investeringar"),0) -> 0 | J68: =IFERROR(-GETPIVOTDATA("Summa av År 2",'-Admin-'!$C$32,"Kostnadskategori","3. Investeringar"),0) -> 0 | K68: =IFERROR(-GETPIVOTDATA("Summa av År 3",'-Admin-'!$C$32,"Kostnadskategori","3. Investeringar"),0) -> 0 | L68: =IFERROR(-GETPIVOTDATA("Summa av År 4",'-Admin-'!$C$32,"Kostnadskategori","3. Investeringar"),0) -> 0 | M68: =IFERROR(-GETPIVOTDATA("Summa av År 5",'-Admin-'!$C$32,"Kostnadskategori","3. Investeringar"),0) -> 0 | N68: =IFERROR(-GETPIVOTDATA("Summa av År 6",'-Admin-'!$C$32,"Kostnadskategori","3. Investeringar"),0) -> 0 | O68: =SUM(I68:N68) -> 0
H69: Projekt | I69: =IFERROR(-GETPIVOTDATA("Summa av År 1",'-Admin-'!$C$32,"Kostnadskategori","4. Projekt"),0) -> -5,737,000 | J69: =IFERROR(-GETPIVOTDATA("Summa av År 2",'-Admin-'!$C$32,"Kostnadskategori","4. Projekt"),0) -> -8,737,864 | K69: =IFERROR(-GETPIVOTDATA("Summa av År 3",'-Admin-'!$C$32,"Kostnadskategori","4. Projekt"),0) -> -3,770,384 | L69: =IFERROR(-GETPIVOTDATA("Summa av År 4",'-Admin-'!$C$32,"Kostnadskategori","4. Projekt"),0) -> 0 | M69: =IFERROR(-GETPIVOTDATA("Summa av År 5",'-Admin-'!$C$32,"Kostnadskategori","4. Projekt"),0) -> 0 | N69: =IFERROR(-GETPIVOTDATA("Summa av År 6",'-Admin-'!$C$32,"Kostnadskategori","4. Projekt"),0) -> 0 | O69: -18,245,248
H71: Finansiell nettonytta | I71: =I63+I65 -> -5,737,000 | J71: -10,154,563 | K71: -27,576,952 | L71: =L63+L65 -> -16,029,664 | M71: -12,506,884 | N71: -12,142,606 | O71: =O63+O65 -> -84,147,670
H72: Ackumulerad finansiell nettonytta | I72: =I63+I65 -> -5,737,000 | J72: =IF(J71=0,I72,I72+J71) -> -15,891,563 | K72: =IF(K71=0,J72,J72+K71) -> -43,468,516 | L72: =IF(L71=0,K72,K72+L71) -> -59,498,179 | M72: =IF(M71=0,L72,L72+M71) -> -72,005,064 | N72: =IF(N71=0,M72,M72+N71) -> -84,147,670 | O72: =N72 -> -84,147,670
C108: Omfördelningsnytta
C111: Nyttorealiseringskalkyl - omfördelningsnytta | H111: Nyttorealiseringskalkyl per år
C112: För perioden | D112: =Startår & " - " & Startår+5 -> 2019 - 2024
I113: =Startår -> 2019 | J113: =I113+1 -> 2020 | K113: =J113+1 -> 2021 | L113: =K113+1 -> 2022 | M113: =L113+1 -> 2023 | N113: =M113+1 -> 2024 | O113: Totalt
C114: Total kostnad | D114: =TotalKostnad -> -102,821,781 | H114: Omfördelningsnyttor | I114: =IFERROR(GETPIVOTDATA("Summa av år 1",'-Admin-'!$C$25,"Nyttokategori","2. Omfördelningsnytta"),0) -> 0 | J114: =IFERROR(GETPIVOTDATA("Summa av år 2",'-Admin-'!$C$25,"Nyttokategori","2. Omfördelningsnytta"),0) -> 0 | K114: =IFERROR(GETPIVOTDATA("Summa av år 3",'-Admin-'!$C$25,"Nyttokategori","2. Omfördelningsnytta"),0) -> 14,259,405 | L114: =IFERROR(GETPIVOTDATA("Summa av år 4",'-Admin-'!$C$25,"Nyttokategori","2. Omfördelningsnytta"),0) -> 41,532,247 | M114: =IFERROR(GETPIVOTDATA("Summa av år 5",'-Admin-'!$C$25,"Nyttokategori","2. Omfördelningsnytta"),0) -> 67,030,273 | N114: =IFERROR(GETPIVOTDATA("Summa av år 6",'-Admin-'!$C$25,"Nyttokategori","2. Omfördelningsnytta"),0) -> 65,077,935 | O114: =SUM(I114:N114) -> 187,899,860
C115: Total omfördelningsnytta | D115: =O114 -> 187,899,860
C116: Omfördelnings-nettonytta | D116: =O122 -> 85,078,079 | H116: Total kostnad | I116: =SUM(I117:I120) -> -5,737,000 | J116: =SUM(J117:J120) -> -10,154,563 | K116: -28,994,099 | L116: -20,157,276 | M116: -19,168,575 | N116: -18,610,267 | O116: -102,821,781
H117: Verksamhets-förändring | I117: =IFERROR(-GETPIVOTDATA("Summa av År 1",'-Admin-'!$C$32,"Kostnadskategori","1. Verksamhetsförändring"),0) -> 0 | J117: =IFERROR(-GETPIVOTDATA("Summa av År 2",'-Admin-'!$C$32,"Kostnadskategori","1. Verksamhetsförändring"),0) -> 0 | K117: =IFERROR(-GETPIVOTDATA("Summa av År 3",'-Admin-'!$C$32,"Kostnadskategori","1. Verksamhetsförändring"),0) -> -5,510,604 | L117: =IFERROR(-GETPIVOTDATA("Summa av År 4",'-Admin-'!$C$32,"Kostnadskategori","1. Verksamhetsförändring"),0) -> -5,272,314 | M117: =IFERROR(-GETPIVOTDATA("Summa av År 5",'-Admin-'!$C$32,"Kostnadskategori","1. Verksamhetsförändring"),0) -> -4,852,205 | N117: =IFERROR(-GETPIVOTDATA("Summa av År 6",'-Admin-'!$C$32,"Kostnadskategori","1. Verksamhetsförändring"),0) -> -4,710,879 | O117: =SUM(I117:N117) -> -20,346,003
C118: Return on investment (ROI) | D118: =IF(-O116=0,0,O122/-O116) -> 0.83 kr | H118: Löpande verksamhets-kostnader | I118: =IFERROR(-GETPIVOTDATA("Summa av År 1",'-Admin-'!$C$32,"Kostnadskategori","2. Löpande verksamhetskostnader"),0) -> 0 | J118: =IFERROR(-GETPIVOTDATA("Summa av År 2",'-Admin-'!$C$32,"Kostnadskategori","2. Löpande verksamhetskostnader"),0) -> -1,416,699 | K118: =IFERROR(-GETPIVOTDATA("Summa av År 3",'-Admin-'!$C$32,"Kostnadskategori","2. Löpande verksamhetskostnader"),0) -> -19,713,112 | L118: =IFERROR(-GETPIVOTDATA("Summa av År 4",'-Admin-'!$C$32,"Kostnadskategori","2. Löpande verksamhetskostnader"),0) -> -14,884,962 | M118: =IFERROR(-GETPIVOTDATA("Summa av År 5",'-Admin-'!$C$32,"Kostnadskategori","2. Löpande verksamhetskostnader"),0) -> -14,316,370 | N118: =IFERROR(-GETPIVOTDATA("Summa av År 6",'-Admin-'!$C$32,"Kostnadskategori","2. Löpande verksamhetskostnader"),0) -> -13,899,388 | O118: =SUM(I118:N118) -> -64,230,530
C119: Payback-år | D119: =IF('-Admin-'!D119=0,"Ingen payback",'-Admin-'!D119) -> 2023 | H119: Investeringar | I119: =IFERROR(-GETPIVOTDATA("Summa av År 1",'-Admin-'!$C$32,"Kostnadskategori","3. Investeringar"),0) -> 0 | J119: =IFERROR(-GETPIVOTDATA("Summa av År 2",'-Admin-'!$C$32,"Kostnadskategori","3. Investeringar"),0) -> 0 | K119: =IFERROR(-GETPIVOTDATA("Summa av År 3",'-Admin-'!$C$32,"Kostnadskategori","3. Investeringar"),0) -> 0 | L119: =IFERROR(-GETPIVOTDATA("Summa av År 4",'-Admin-'!$C$32,"Kostnadskategori","3. Investeringar"),0) -> 0 | M119: =IFERROR(-GETPIVOTDATA("Summa av År 5",'-Admin-'!$C$32,"Kostnadskategori","3. Investeringar"),0) -> 0 | N119: =IFERROR(-GETPIVOTDATA("Summa av År 6",'-Admin-'!$C$32,"Kostnadskategori","3. Investeringar"),0) -> 0 | O119: =SUM(I119:N119) -> 0
H120: Projekt | I120: =IFERROR(-GETPIVOTDATA("Summa av År 1",'-Admin-'!$C$32,"Kostnadskategori","4. Projekt"),0) -> -5,737,000 | J120: =IFERROR(-GETPIVOTDATA("Summa av År 2",'-Admin-'!$C$32,"Kostnadskategori","4. Projekt"),0) -> -8,737,864 | K120: =IFERROR(-GETPIVOTDATA("Summa av År 3",'-Admin-'!$C$32,"Kostnadskategori","4. Projekt"),0) -> -3,770,384 | L120: =IFERROR(-GETPIVOTDATA("Summa av År 4",'-Admin-'!$C$32,"Kostnadskategori","4. Projekt"),0) -> 0 | M120: =IFERROR(-GETPIVOTDATA("Summa av År 5",'-Admin-'!$C$32,"Kostnadskategori","4. Projekt"),0) -> 0 | N120: =IFERROR(-GETPIVOTDATA("Summa av År 6",'-Admin-'!$C$32,"Kostnadskategori","4. Projekt"),0) -> 0 | O120: -18,245,248
H122: Omfördelnings-nettonytta | I122: =I114+I116 -> -5,737,000 | J122: -10,154,563 | K122: -14,734,694 | L122: 21,374,971 | M122: 47,861,698 | N122: 46,467,668 | O122: 85,078,079
H123: Ackumulerad omfördelnings-nettonytta | I123: =I124 -> 0 | J123: =IF(J122=0,I123,I123+J122) -> -10,154,563 | K123: =IF(K122=0,J123,J123+K122) -> -24,889,258 | L123: =IF(L122=0,K123,K123+L122) -> -3,514,287 | M123: =IF(M122=0,L123,L123+M122) -> 44,347,411 | N123: =IF(N122=0,M123,M123+N122) -> 90,815,079 | O123: =N123 -> 90,815,079

Sheet Data antal samtal
A1: Planerat införande | B1: Region | C1: Besvarade samtal 2019 (Sörmland och Värmland från 2020) | D1: 5 % per månad -bild | E1: 5 % per månad -vide
A2: Bild | B2: Blekinge | C2: 77,367 | D2: =(C2*0.05)/12 -> 322
A3: Bild och video | B3: Dalarna | C3: 107,767 | D3: =(C3*0.05)/12 -> 449 | E3: =(C3*0.05)/12 -> 449
A4: Bild och video | B4: Gotland | C4: 36,251 | D4: 151 | E4: 151
A5: Bild och video | B5: Halland | C5: 89,583 | D5: 373 | E5: 373
A6: Bild och video | B6: Jämtland | C6: 63,539 | D6: 265 | E6: 265
A7: Bild och video | B7: Jönköpings län | C7: 124,986 | D7: 521 | E7: 521
A8: Bild och video | B8: Kalmar län | C8: 78,089 | D8: 325 | E8: 325
A9: Bild och video | B9: Kronoberg | C9: 91,894 | D9: 383 | E9: 383
A10: Bild | B10: Norrbotten | C10: 88,139 | D10: 367
A11: Bild och video | B11: Skåne | C11: 302,288 | D11: 1,260 | E11: 1,260
A12: Bild och video | B12: Sörmland (2020) | C12: 118,561 | D12: 494 | E12: 494
A13: Bild och video | B13: Uppsala | C13: 147,743 | D13: 616 | E13: 616
A14: Bild och video | B14: Värmland (2020 | C14: 127,382 | D14: 531 | E14: 531
A15: Bild | B15: Västerbotten | C15: 131,098 | D15: 546
A16: Bild och video | B16: Västernorrland | C16: 124,424 | D16: 518 | E16: 518
A17: Bild och video | B17: Västmanland | C17: 118,457 | D17: 494 | E17: 494
A18: Bild och video | B18: Västra Götaland | C18: 586,408 | D18: 2,443 | E18: 2,443
A19: Bild och video | B19: Örebro län | C19: 127,152 | D19: 530 | E19: 530
A20: Bild och video | B20: Östergötland | C20: 187,253 | D20: 780 | E20: 780
B22: Antal besvarade för regioner som inför bild | C22: =SUM(C2:C20) -> 2,728,381 | D22: =SUM(D2:D20) -> 11,368 | E22: 10,132
B23: Antal besvarade för regioner som inför video | C23: =SUM(C2:C20)-C10-C2-C15 -> 2,431,777 | D23: =SUM(D2:D20)-D10-D2-D15 -> 10,132 | E23: 10,132

Sheet -Admin- (hidden)
C1: Admin
C2: I den här fliken finns stödfunktioner som används i kalkylen. Redigera dem bara om du är säker på att du vill ändra hur mallen fungerar.
C5: Underlag för rullister i mallen
C6: Fördefinierade värden i rullisterna
C7: Grunden för att kunna redovisa nyttokalkylen uppdelad på typ av nytta.
C9: Nyttokategori
C10: 1. Finansiell
C11: 2. Omfördelningsnytta
C12: 3. Kvalitativ, mätbar
C14: Kostnadskategori
C15: 1. Verksamhetsförändring
C16: 2. Löpande verksamhetskostnader
C17: 3. Investeringar
C18: 4. Projekt
C21: Underlag för nyttokalkylen
C23: PivotNytta
C24: Nyttor
C25: Radetiketter | D25: Summa av år 1 | E25: Summa av År 2 | F25: Summa av År 3 | G25: Summa av År 4 | H25: Summa av År 5 | I25: Summa av År 6
C26: 2. Omfördelningsnytta | D26: 0 | E26: 0 | F26: 14,259,405 | G26: 41,532,247 | H26: 67,030,273 | I26: 65,077,935
C27: 1. Finansiell | D27: 0 | E27: 0 | F27: 1,417,147 | G27: 4,127,612 | H27: 6,661,691 | I27: 6,467,661
C28: 0 | D28: 0 | E28: 0 | F28: 0 | G28: 0 | H28: 0 | I28: 0
C30: PivotKostnad
C31: Kostnader
C32: Radetiketter | D32: Summa av År 1 | E32: Summa av År 2 | F32: Summa av År 3 | G32: Summa av År 4 | H32: Summa av År 5 | I32: Summa av År 6
C33: 0 | D33: 0 | E33: 0 | F33: 0 | G33: 0 | H33: 0 | I33: 0
C34: 2. Löpande verksamhetskostnader | D34: 0 | E34: 1,416,699 | F34: 19,713,112 | G34: 14,884,962 | H34: 14,316,370 | I34: 13,899,388
C35: 1. Verksamhetsförändring | D35: 0 | E35: 0 | F35: 5,510,604 | G35: 5,272,314 | H35: 4,852,205 | I35: 4,710,879
C36: 4. Projekt | D36: 5,737,000 | E36: 8,737,864 | F36: 3,770,384 | G36: 0 | H36: 0 | I36: 0
C40: Underlag för några av diagrammen - övriga diagram hämtar sin data från sammanställningen på fliken Nyttokalkyl
C42: Diagram "Nyttor och kostnader"
D44: Finansiell nytta | E44: Omfördelningsnytta | F44: Total nytta | G44: Kostnad
C45: Nytta | D45: =Nyttokalkyl!$O$13 -> 18,674,111 | E45: =Nyttokalkyl!O14 -> 187,899,860 | F45: =D45+E45 -> 206,573,971
C46: Kostnad | G46: =-1*TotalKostnad -> 102,821,781
C48: PivotNyttaIntressent | F48: PivotKostnadIntressent | I48: PivotFinansiellNyttaIntressent | L48: PivotOmfördelningsnyttaIntressent
C49: Diagram "Nytta per intressent" | F49: Diagram "Kostnad per intressent" | I49: Diagram "Finansiell nytta per intressent" | L49: Diagram "Omfördelningsnytta nytta per intressent"
C50: Nyttokategori | D50: (flera objekt) | F50: Kostnadskategori | G50: (flera objekt) | I50: Nyttokategori | J50: 1. Finansiell | L50: Nyttokategori | M50: 2. Omfördelningsnytta
C52: Radetiketter | D52: Summa av Summa trolig | F52: Radetiketter | G52: Summa av Summa | I52: Radetiketter | J52: Summa av Summa trolig | L52: Radetiketter | M52: Summa av Summa trolig
C53: Regioner | D53: 163,374,528 | F53: Staten | G53: 25,704,590 | I53: Invånare | J53: 18,674,111 | L53: Regioner | M53: 163,374,528
C54: Invånare | D54: 43,199,443 | F54: Regioner | G54: 72,222,190 | I54: Totalsumma | J54: 18,674,111 | L54: Invånare | M54: 24,525,332
C55: Totalsumma | D55: 206,573,971 | F55: Inera | G55: 4,895,000 | L55: Totalsumma | M55: 187,899,860
F56: Totalsumma | G56: 102,821,781
C67: PivotNyttaOsäkerhet | I67: PivotKostnadOsäkerhet
C68: PivotNytta - underlag till diagram "osäkerhetsanalys" | I68: PivotKostnad - underlag till diagram "osäkerhetsanalys"
C69: Radetiketter | D69: Summa av Summa min | E69: Summa av Summa trolig | F69: Summa av Summa max | I69: Radetiketter | J69: Summa av Min | K69: Summa av Summa | L69: Summa av Max
C70: 0 | D70: 0 | E70: 0 | F70: 0 | I70: 2. Löpande verksamhetskostnader | J70: 51,384,424 | K70: 64,230,530 | L70: 77,076,636
C71: 2. Omfördelningsnytta | D71: 130,171,549 | E71: 187,899,860 | F71: 251,343,255 | I71: 1. Verksamhetsförändring | J71: 16,276,802 | K71: 20,346,003 | L71: 24,415,203
C72: 1. Finansiell | D72: 13,338,651 | E72: 18,674,111 | F72: 25,755,089 | I72: 4. Projekt | J72: 14,596,198 | K72: 18,245,248 | L72: 21,894,297
C73: Totalsumma | D73: 143,510,199 | E73: 206,573,971 | F73: 277,098,345 | I73: Totalsumma | J73: 82,257,425 | K73: 102,821,781 | L73: 123,386,137
C77: Diagram "Osäkerhetsanalys" Alla nyttor
D78: Nytta | E78: Kostnad | F78: Nettonytta
C79: Min | D79: =IFERROR(GETPIVOTDATA("Summa av Summa min",$C$69),0) -> 143,510,199 | E79: =GETPIVOTDATA("Summa av Min",$I$69) -> 82,257,425 | F79: =D79-E81 -> 20,124,062
C80: Troligt | D80: =IFERROR(GETPIVOTDATA("Summa av Summa trolig",$C$69),0) -> 206,573,971 | E80: =GETPIVOTDATA("Summa av Summa",$I$69) -> 102,821,781 | F80: =D80-E80 -> 103,752,190 | I80: Fördelning av nyttor
C81: Max | D81: =IFERROR(GETPIVOTDATA("Summa av Summa max",$C$69),0) -> 277,098,345 | E81: =GETPIVOTDATA("Summa av Max",$I$69) -> 123,386,137 | F81: =D81-E79 -> 194,840,920 | I81: Summa av Summa trolig | J81: Kolumnetiketter
I82: Radetiketter | J82: Bild - frigjorda vårdbesök | K82: Bild - sparar tid för invånare | L82: Bild - sparar pengar för invånare | M82: Video - frigjorda vårdbesök | N82: Video - sparar tid | O82: Video - sparar pengar | P82: Totalsumma
I83: Regioner | J83: 78,658,728 | M83: 84,715,800 | P83: 163,374,528
C84: Diagram "Osäkerhetsanalys" Finansiella nyttor | I84: Invånare | K84: 11,808,031 | L84: 8,990,886 | N84: 12,717,301 | O84: 9,683,224 | P84: 43,199,443
D85: Finansiell nytta | E85: Kostnad | F85: Nettonytta | I85: Totalsumma | J85: 78,658,728 | K85: 11,808,031 | L85: 8,990,886 | M85: 84,715,800 | N85: 12,717,301 | O85: 9,683,224 | P85: 206,573,971
C86: Min | D86: =IFERROR(GETPIVOTDATA("Summa av Summa min",$C$69,"Nyttokategori","1. Finansiell"),0) -> 13,338,651 | E86: =GETPIVOTDATA("Summa av Min",$I$69) -> 82,257,425 | F86: =D86-E88 -> -110,047,486
C87: Troligt | D87: =IFERROR(GETPIVOTDATA("Summa av Summa trolig",$C$69,"Nyttokategori","1. Finansiell"),0) -> 18,674,111 | E87: =GETPIVOTDATA("Summa av Summa",$I$69) -> 102,821,781 | F87: =D87-E87 -> -84,147,670
C88: Max | D88: =IFERROR(GETPIVOTDATA("Summa av Summa max",$C$69,"Nyttokategori","1. Finansiell"),0) -> 25,755,089 | E88: =GETPIVOTDATA("Summa av Max",$I$69) -> 123,386,137 | F88: =D88-E86 -> -56,502,335
C91: Diagram "Osäkerhetsanalys" Omfördelningsnyttor
D92: Omfördelningsnytta | E92: Kostnad | F92: Nettonytta
C93: Min | D93: =IFERROR(GETPIVOTDATA("Summa av Summa min",$C$69,"Nyttokategori","2. Omfördelningsnytta"),0) -> 130,171,549 | E93: =Kostnader[[#Totals],[Min]] -> 82,257,425 | F93: =D93-E95 -> 6,785,412
C94: Troligt | D94: =IFERROR(GETPIVOTDATA("Summa av Summa trolig",$C$69,"Nyttokategori","2. Omfördelningsnytta"),0) -> 187,899,860 | E94: =Kostnader[[#Totals],[Summa]] -> 102,821,781 | F94: =D94-E94 -> 85,078,079
C95: Max | D95: =IFERROR(GETPIVOTDATA("Summa av Summa max",$C$69,"Nyttokategori","2. Omfördelningsnytta"),0) -> 251,343,255 | E95: =Kostnader[[#Totals],[Max]] -> 123,386,137 | F95: =D95-E93 -> 169,085,831
C98: Underlag för payback-år
C99: Alla nyttor
C100: Följande rader används för beräkning av Payback-år | D100: =Startår -> 2019 | E100: =D100+1 -> 2020 | F100: =E100+1 -> 2021 | G100: 2022 | H100: 2023 | I100: 2024
C101: Ack. diskonterat kassaflöde > 0? | D101: =Nyttokalkyl!I27>0 -> FALSE | E101: =Nyttokalkyl!J27>0 -> FALSE | F101: =Nyttokalkyl!K27>0 -> FALSE | G101: =Nyttokalkyl!L27>0 -> FALSE | H101: =Nyttokalkyl!M27>0 -> TRUE | I101: =Nyttokalkyl!N27>0 -> TRUE
C102: Är detta ett paybackår? | D102: =IF(D101=FALSE,"x",D100) -> x | E102: =IF(E101=FALSE,"x",E100) -> x | F102: x | G102: x | H102: 2,023 | I102: 2,024
C103: Första paybackår (om något) | D103: =MIN(D102:I102) -> 2,023
C104: Paybackår? | D104: =IF('-Admin-'!D103=0,"Ingen payback",'-Admin-'!D103) -> 2023
C107: Finansiella nyttor
C108: Följande rader används för beräkning av Payback-år | D108: =Startår -> 2019 | E108: =D108+1 -> 2020 | F108: =E108+1 -> 2021 | G108: =F108+1 -> 2022 | H108: =G108+1 -> 2023 | I108: =H108+1 -> 2024
C109: Ack. diskonterat kassaflöde > 0? | D109: =Nyttokalkyl!I72>0 -> FALSE | E109: =Nyttokalkyl!J72>0 -> FALSE | F109: =Nyttokalkyl!K72>0 -> FALSE | G109: =Nyttokalkyl!L72>0 -> FALSE | H109: =Nyttokalkyl!M72>0 -> FALSE | I109: =Nyttokalkyl!N72>0 -> FALSE
C110: Är detta ett paybackår? | D110: =IF(D109=FALSE,"x",D108) -> x | E110: =IF(E109=FALSE,"x",E108) -> x | F110: x | G110: x | H110: x | I110: x
C111: Första paybackår (om något) | D111: =MIN(D110:I110) -> 0
C112: Paybackår? | D112: =IF('-Admin-'!D111=0,"Ingen payback",'-Admin-'!D111) -> Ingen payback
C115: Omfördelningsnyttor
C116: Följande rader används för beräkning av Payback-år | D116: =Startår -> 2019 | E116: =D116+1 -> 2020 | F116: =E116+1 -> 2021 | G116: =F116+1 -> 2022 | H116: =G116+1 -> 2023 | I116: =H116+1 -> 2024
C117: Ack. diskonterat kassaflöde > 0? | D117: =Nyttokalkyl!I123>0 -> FALSE | E117: =Nyttokalkyl!J123>0 -> FALSE | F117: =Nyttokalkyl!K123>0 -> FALSE | G117: =Nyttokalkyl!L123>0 -> FALSE | H117: =Nyttokalkyl!M123>0 -> TRUE | I117: =Nyttokalkyl!N123>0 -> TRUE
C118: Är detta ett paybackår? | D118: =IF(D117=FALSE,"x",D116) -> x | E118: =IF(E117=FALSE,"x",E116) -> x | F118: x | G118: x | H118: 2,023 | I118: 2,024
C119: Första paybackår (om något) | D119: =MIN(D118:I118) -> 2,023
C120: Paybackår? | D120: =IF('-Admin-'!D119=0,"Ingen payback",'-Admin-'!D119) -> 2023
